{"text_format":"1","workbook":"xlsx","n_sheets":10,"sheets":["PORTADA","INSTRUCCIONES","INFORMACION ATEL","ANÁLISIS POR PROCESO","FORMATO DE CAMPO","CATEGORÍAS","CONSOLIDADO POR ACTIVIDAD","BIBLIOGRAFÍA","FORMATO CAMPO","snook & ciriello resumen"],"not_rendered":{"charts":13,"images":4,"macros":0,"external_links":2,"defined_names":19,"comments":0,"pivot_tables":0},"unopened":[],"bounds":{"document_bytes":16777216,"sheet_cells":100000,"rows_first":2000,"rows_last":500,"rows_between":2000,"halvings":0,"cell_chars":16384,"cell_head_chars":4096},"cells_cut":0,"cells_raw":0,"read":"whole","date_system":"1900"}

{"sheet":"PORTADA","index":0,"n_rows":0,"n_cols":0,"rows_kept":0,"cut":false,"hidden":false,"merged":[]}

{"sheet":"INSTRUCCIONES","index":1,"n_rows":15,"n_cols":2,"rows_kept":15,"cut":false,"hidden":false,"merged":[[5,0,6,0],[1,0,1,1]]}
[]
["Herramienta de Diagnóstico Rápido Inicial\nInstrucciones"]
[]
["Metodología","Reunión presencial, visita a las instalaciones y verbalizaciones con trabajadores y supervisores."]
[]
["Paso a paso","En la misma visita en que se definan los indicadores con el Director, Coordinador o Encargado SST, también estime los procesos o áreas más críticas y realice una inspección empleando la tercera parte de la HERRAMIENTA DE DIAGNÓSTICO RÁPIDO INICIAL, correspondiente al Análisis por Proceso.\n\nPuede imprimir varios ejemplares del Formato de campo directamente desde este archivo Excel, según el número de procesos que deba visitar.\n\nUna vez se encuentre en las instalaciones y haciendo uso de los formatos:\n\nDiligencie el Nombre del Proceso Crítico según sea denominado en la empresa, luego mediante observación y verbalización con los trabajadores y supervisor involucrados defina la tarea crítica de MMC, si es necesario registre observaciones importantes que considere acerca de la tarea.\n\nDefina el número de expuestos corroborando la información con los trabajadores y supervisores y, teniendo en cuenta el número de turnos u horarios en caso de que esto aplique.\n\nDiligencie el nivel y aceptabilidad del riesgo biomecánico con el cual ha sido valorada la tarea en la matriz de identificación de peligros e indague con los trabadores y supervisores, los controles representativos ya adelantados por la empresa para la prevención de accidentes por sobresfuerzos y aparición de DME relacionados con la tarea; en caso afirmativo describa en las observaciones del formato dichos avances.\n\nContinúe con el diligenciamiento del formato seleccionando la opción que corresponda a la realidad observada en cuanto a la ejecución de la tarea crítica por sobresfuerzos seleccionada. Cada vez que tenga dudas corrobore la información con los trabajadores y supervisores y, con el Director, Coordinador o Encargado SST, según corresponda, solicitando evidencias documentales y tangibles de ser necesario y, realizando registros de video y fotografía de momentos de mayor exposición que pueden requerirse para posteriores análisis de los peligros y presentaciones."]
[null,"Al finalizar la aplicación del formato concluya observaciones sobre la problemática de MMC y proponga estrategias generales de intervención, para esto puede basarse en las sugeridas en el Programa para la prevención de peligros asociados a la manipulación manual de cargas y la movilización manual de pacientes. \n\nDigitalice la información en el archivo Excel de la herramienta, en el mismo donde previamente registro la información ATEL, básicamente se trata de transcribir los datos registrados en los Formatos de campo, teniendo en cuenta las indicaciones que muestra la herramienta al seleccionar cada recuadro a diligenciar. Al terminar la herramienta calculará una calificación total y asignará una categoría a cada tarea evaluada, conforme a la siguiente clasificación y ponderación:\n\n• EVALUACIÓN PERIÓDICA: <=25\n• INTERVENCIÓN A MEDIANO PLAZO: 25,1 a 50\n• INTERVENCIÓN A CORTO PLAZO: 50,1 a 70\n• INTERVENCIÓN INMEDIATA >=70,1\n\nRevise entonces cuáles son las tareas con la calificación y clasificación más crítica, es decir INTERVENCIÓN INMEDIATA e infórmelo a la empresa para que se realice sobre estas la aplicación de la Evaluación Profunda en siguientes visitas, las cuales se sugiere programarse con la participación de los actores indicados en las instrucciones.\n\nEnvíe el archivo a la empresa e informe que este cuenta con una pestaña denominada Consolidado por tarea, donde podrá seleccionar cada una de las tareas evaluadas y obtendrá el correspondiente resultado imprimible."]
[]
["Actores Invitados y roles","Trabajadores que ejecutan la tarea crítica por MMC y supervisores: Suministrarán información verídica sobre las condiciones de trabajo y estarán atentos a corroborar cualquier dato, así como formular ideas de posibilidades de mejoramiento.\n\nDirector, Coordinador o Encargado SST: Informará a trabajadores, supervisores y directores de área la ejecución y alcance de la evaluación diagnóstica, facilitará el acceso del evaluador a las áreas que se requieran y la comunicación con los actores invitados, además estará atento a corroborar cualquier dato, así como formular ideas de posibilidades de mejoramiento."]
[]
["Tiempo requerido","4 horas en campo\n4 horas de informe\nEstos tiempos pueden extenderse de acuerdo con la complejidad de la problemática de la determinada empresa a intervenir."]
[]
["Recursos","Papelería, Cámara digital, Flexómetro, Elementos de protección personal, computador."]
[]
["Profesional asignado","Profesional Especialista en Salud Ocupacional o áreas afines, entrenado en la aplicación de las herramientas y preferiblemente con experiencia en ergonomía "]

{"sheet":"INFORMACION ATEL","index":2,"n_rows":161,"n_cols":18,"rows_kept":161,"cut":false,"hidden":false,"merged":[[60,0,60,1],[61,0,61,1],[64,0,64,1],[57,0,57,20],[52,10,52,12],[53,10,53,12],[54,10,54,12],[55,7,55,9],[52,2,52,6],[53,2,53,6],[54,2,54,6],[55,2,55,6],[55,10,55,12],[52,13,52,14],[53,13,53,14],[54,13,54,14],[55,13,55,14],[52,15,52,18],[53,15,55,18],[52,7,52,9],[53,7,53,9],[54,7,54,9],[45,1,45,4],[75,6,75,8],[76,6,76,8],[92,6,92,8],[93,6,93,8],[94,6,94,8],[62,0,62,1],[63,0,63,1],[74,0,76,0],[74,1,74,2],[75,1,75,2],[76,1,76,2],[86,0,94,0],[86,1,86,2],[87,1,87,2],[88,1,88,2],[89,1,89,2],[90,1,90,2],[91,1,91,2],[92,1,92,2],[93,1,93,2],[94,1,94,2],[50,0,50,20],[73,6,73,8],[29,0,35,0],[29,1,30,1],[29,2,29,3],[29,4,29,5],[18,1,18,2],[18,3,18,4],[18,5,18,7],[18,0,19,0],[19,6,19,7],[20,6,20,7],[11,12,11,13],[11,14,11,15],[11,0,11,2],[11,3,11,10],[1,0,1,20],[0,0,0,20],[3,0,3,20],[5,17,5,18],[5,19,5,20],[5,0,5,2],[7,0,7,2],[9,0,9,2],[9,3,9,20],[11,17,11,18],[11,19,11,20],[7,3,7,20],[5,3,5,10],[5,12,5,13],[5,14,5,15],[13,0,13,2],[13,3,13,20],[105,1,105,2],[108,0,108,20],[97,6,97,8],[98,6,98,8],[99,6,99,8],[100,6,100,8],[101,6,101,8],[102,1,102,2],[103,1,103,2],[104,1,104,2],[85,6,85,8],[86,6,86,8],[91,6,91,8],[88,6,88,8],[89,6,89,8],[90,6,90,8],[96,6,96,8],[87,6,87,8],[43,0,43,20],[74,6,74,8],[97,0,105,0],[15,0,15,20],[112,0,112,1],[113,0,113,1],[115,0,115,1],[116,0,116,1],[114,0,114,1],[85,1,85,2],[96,1,96,2],[126,6,126,8],[127,0,129,0],[127,1,127,2],[127,6,127,8],[97,1,97,2],[98,1,98,2],[99,1,99,2],[100,1,100,2],[101,1,101,2],[105,6,105,8],[102,6,102,8],[103,6,103,8],[104,6,104,8],[128,1,128,2],[128,6,128,8],[129,1,129,2],[129,6,129,8],[138,6,138,8],[139,0,147,0],[139,1,139,2],[139,6,139,8],[140,1,140,2],[140,6,140,8],[141,1,141,2],[141,6,141,8],[142,1,142,2],[142,6,142,8],[143,1,143,2],[143,6,143,8],[144,1,144,2],[144,6,144,8],[145,1,145,2],[145,6,145,8],[146,1,146,2],[146,6,146,8],[147,1,147,2],[147,6,147,8],[138,1,138,2],[160,0,160,20],[162,0,162,20],[149,6,149,8],[150,0,158,0],[150,1,150,2],[150,6,150,8],[151,1,151,2],[151,6,151,8],[152,1,152,2],[152,6,152,8],[153,1,153,2],[153,6,153,8],[154,1,154,2],[154,6,154,8],[155,1,155,2],[155,6,155,8],[156,1,156,2],[156,6,156,8],[157,1,157,2],[157,6,157,8],[158,1,158,2],[158,6,158,8]]}
[]
["Herramienta de Diagnóstico Rápido Inicial\nAnálisis de Información ATEL"]
[]
["INFORMACIÓN GENERAL DE LA EMPRESA"]
[]
["Razón Social",null,null,"Nombre empresa",null,null,null,null,null,null,null,null,"NIT",null,null,null,null,"Fecha de diligenciamiento"]
[]
["Actividad económica"]
[]
["Problemática de manipulación manual de cargas en la empresa"]
[]
["Dirección",null,null,null,null,null,null,null,null,null,null,null,"Teléfonos",null,null,null,null,"Municipio"]
[]
["Observaciones"]
[]
["INFORMACIÓN GENERAL DE LOS TRABAJADORES"]
[]
[]
["No. total de trabajadores en la empresa","Total trabajadores expuestos a peligros por MMC",null,"Mujeres expuestas a peligros por MMC",null,"Hombres expuestos a peligros por MMC"]
[null,"No.","Porcentaje vs total de la empresa","No.","Porcentaje vs total de expuestos","No.","Porcentaje vs total de expuestos"]
[100,20,{"$f":"B21*100%/A21","v":0.2},8,{"$f":"D21*100%/B21","v":0.4},12,{"$f":"F21*100%/B21","v":0.6}]
[1]
[]
[]
[]
[]
[]
[]
[]
["Edad población expuesta","Rango","Mujeres",null,"Hombres"]
[null,null,"No.","Porcentaje","No.","Porcentaje"]
[null,"18 a 25",1,{"$f":"C32*100%/D21","v":0.125},2,{"$f":"E32*100%/F21","v":0.16666666666666666}]
[null,"26 a 35",2,{"$f":"C33*100%/D21","v":0.25},2,{"$f":"E33*100%/F21","v":0.16666666666666666}]
[null,"36 a 45",5,{"$f":"C34*100%/D21","v":0.625},2,{"$f":"E34*100%/F21","v":0.16666666666666666}]
[null,"46 a 55",0,{"$f":"C35*100%/D21","v":0},2,{"$f":"E35*100%/F21","v":0.16666666666666666}]
[null,"56 o más",0,{"$f":"C36*100%/D21","v":0},4,{"$f":"E36*100%/F21","v":0.33333333333333331}]
[]
[]
[]
[]
[]
[]
[]
["INFORMACIÓN GENERAL SOBRE LA FORMA DE CONTRATACIÓN"]
[]
[null,"Trabajadores expuestos a MMC"]
[null,"Directos","Porcentaje","Contratistas","Porcentaje"]
[null,15,{"$f":"B48*100%/B21","v":0.75},5,{"$f":"D48*100%/B21","v":0.25}]
[]
[]
["INFORMACIÓN BÁSICA SOBRE SEGURIDAD Y SALUD EN EL TRABAJO"]
[]
[null,null,"Presencia de los siguientes registros/ documentos",null,null,null,null,"Actualización dentro de  los últimos 12 meses",null,null,"Calidad  de la información de los registros para el Dx. Inicial",null,null,"Calificación parcial   calidad de la información de los registros",null,"Calificación calidad de la información de los registros"]
[null,null,"Identificación de peligros, evaluación y valoración de riesgos",null,null,null,null,null,null,null,null,null,null,{"$f":"IF(K54=\"Suficiente\",\"0,1\",IF(K54=\"Regular\",\"0,5\",IF(K54=\"Sin información\",\"1\")))","v":false},null,{"$f":"N54+N55+N56","v":0}]
[null,null,"Caracterización de la accidentalidad por sobresfuerzos y falsos movimientos relacionados con MMC",null,null,null,null,null,null,null,null,null,null,{"$f":"IF(K55=\"Suficiente\",\"0,1\",IF(K55=\"Regular\",\"0,5\",IF(K55=\"Sin información\",\"1\")))","v":false}]
[null,null,"Caracterización por desórdenes músculo esqueléticos DME",null,null,null,null,null,null,null,null,null,null,false]
[]
["ANÁLISIS DE ACCIDENTALIDAD POR SOBRESFUERZOS Y FALSOS MOVIMIENTOS RELACIONADOS CON MMC"]
[]
[null,null,"AÑO 2014","AÑO 2015","AÑO 2016","TOTAL"]
["Total de accidentes",null,10,10,10,{"$f":"SUM(C61:E61)","v":30}]
["Días perdidos por total de accidentes",null,30,30,30,{"$f":"SUM(C62:E62)","v":90}]
["Accidentes por sobresfuerzos relacionados con MMC",null,6,6,6,18]
["Días perdidos tras accidentes por  sobresfuerzos relacionados con MMC",null,18,18,18,54]
["Porcentaje accidentes por sobresfuerzos relacionados con MMC vs el total",null,{"$f":"C63*100%/C61","v":0.6},{"$f":"D63*100%/D61","v":0.6},{"$f":"E63*100%/E61","v":0.6}]
[]
[]
[]
[]
[]
[]
[]
[]
[null,null,null,"AÑO 2014","AÑO 2015","AÑO 2016","TOTAL",null,null,"Porcentaje"]
["Número de accidentes de trabajo por sobresfuerzo relacionados con MMC que generaron lesiones en segmentos corporales","Miembros superiores",null,1,2,3,{"$f":"SUM(D75:F75)","v":6},null,null,{"$f":"G75*100%/F63","v":0.33333333333333331}]
[null,"Columna",null,2,2,2,{"$f":"SUM(D76:F76)","v":6},null,null,{"$f":"G76*100%/F63","v":0.33333333333333331}]
[null,"Miembros inferiores",null,3,2,1,6,null,null,{"$f":"G77*100%/F63","v":0.33333333333333331}]
[]
[]
[]
[]
[]
[]
[]
[]
[null,"Proceso",null,"AÑO 2014","AÑO 2015","AÑO 2016","TOTAL",null,null,"%"]
["No. de accidentes por sobresfuerzos relacionados con MMC","Producción",null,1,2,3,{"$f":"SUM(D87:F87)","v":6},null,null,{"$f":"G87*100%/F63","v":0.33333333333333331}]
[null,"Producto terminado",null,2,2,2,{"$f":"SUM(D88:F88)","v":6},null,null,{"$f":"G88*100%/F63","v":0.33333333333333331}]
[null,"Almacén",null,2,1,1,4,null,null,{"$f":"G89*100%/F63","v":0.22222222222222221}]
[null,"Mecanizado",null,1,1,0,2,null,null,{"$f":"G90*100%/F63","v":0.1111111111111111}]
[null,null,null,null,null,null,0,null,null,{"$f":"G91*100%/F63","v":0}]
[null,null,null,null,null,null,0,null,null,{"$f":"G92*100%/F63","v":0}]
[null,null,null,null,null,null,0,null,null,{"$f":"G93*100%/F63","v":0}]
[null,null,null,null,null,null,0,null,null,{"$f":"G94*100%/F63","v":0}]
[null,null,null,null,null,null,0,null,null,{"$f":"G95*100%/F63","v":0}]
[]
[null,"Proceso",null,"AÑO 2014","AÑO 2015","AÑO 2016","TOTAL"]
["No. Días perdidos accidentes por MMC","Producción",null,3,6,9,{"$f":"SUM(D98:F98)","v":18}]
[null,"Producto terminado",null,6,6,6,{"$f":"SUM(D99:F99)","v":18}]
[null,"Almacén",null,6,3,3,12]
[null,"Mecanizado",null,3,3,0,6]
[null,null,null,null,null,null,0]
[null,null,null,null,null,null,0]
[null,null,null,null,null,null,0]
[null,null,null,null,null,null,0]
[null,null,null,null,null,null,0]
[]
[]
["REGISTRO DE DESÓRDENES MÚSCULO ESQUELÉTICOS DME, EN ÁREAS O PROCESOS CRÍTICOS POR EXPOSICIÓN A MMC"]
[]
[]
[null,null,"AÑO 2014","AÑO 2015","AÑO 2016","TOTAL"]
["No. de trabajadores con sintomatología Músculo Esquelética",null,5,3,2,{"$f":"SUM(C113:E113)","v":10}]
["No. Desórdenes Músculo Esqueléticos de origen común",null,3,2,1,{"$f":"SUM(C114:E114)","v":6}]
["No. Desórdenes Músculo Esqueléticos de origen laboral",null,2,1,1,{"$f":"SUM(C115:E115)","v":4}]
["Total Desórdenes Músculo Esqueléticos",null,{"$f":"SUM(C114:C115)","v":5},{"$f":"SUM(D114:D115)","v":3},{"$f":"SUM(E114:E115)","v":2},{"$f":"SUM(C116:E116)","v":10}]
["Días perdidos por Desórdenes Músculo Esqueléticos",null,15,9,6,30]
[]
[]
[]
[]
[]
[]
[]
[]
[]
[null,null,null,"AÑO 2014","AÑO 2015","AÑO 2016","TOTAL",null,null,"Porcentaje"]
["Total Desórdenes Músculo Esqueléticos de cualquier origen","Miembros superiores",null,1,1,1,{"$f":"SUM(D128:F128)","v":3},null,null,{"$f":"G128*100%/F116","v":0.3}]
[null,"Columna",null,3,2,1,{"$f":"SUM(D129:F129)","v":6},null,null,{"$f":"G129*100%/F116","v":0.6}]
[null,"Miembros inferiores",null,1,0,0,{"$f":"SUM(D130:F130)","v":1},null,null,{"$f":"G130*100%/F116","v":0.1}]
[]
[]
[]
[]
[]
[]
[]
[]
[null,"Proceso",null,"AÑO 2014","AÑO 2015","AÑO 2016","TOTAL",null,null,"Porcentaje"]
["Número de Desórdenes Músculo Esqueléticos","Producción",null,1,0,1,{"$f":"SUM(D140:F140)","v":2},null,null,{"$f":"G140*100%/F116","v":0.2}]
[null,"Producto terminado",null,1,0,0,{"$f":"SUM(D141:F141)","v":1},null,null,{"$f":"G141*100%/F116","v":0.1}]
[null,"Almacén",null,2,2,1,5,null,null,{"$f":"G142*100%/F116","v":0.5}]
[null,"Mecanizado",null,1,0,0,1,null,null,{"$f":"G143*100%/F116","v":0.1}]
[null,"Administración",null,0,1,0,1,null,null,{"$f":"G144*100%/F116","v":0.1}]
[null,null,null,null,null,null,0,null,null,{"$f":"G145*100%/F116","v":0}]
[null,null,null,null,null,null,0,null,null,{"$f":"G146*100%/F116","v":0}]
[null,null,null,null,null,null,0,null,null,{"$f":"G147*100%/F116","v":0}]
[null,null,null,null,null,null,0,null,null,{"$f":"G148*100%/F116","v":0}]
[]
[null,null,null,"AÑO 2014","AÑO 2015","AÑO 2016","TOTAL"]
["Número de días perdidos por Desórdenes Músculo Esqueléticos","Producción",null,3,0,3,{"$f":"SUM(D151:F151)","v":6}]
[null,"Producto terminado",null,3,0,0,{"$f":"SUM(D152:F152)","v":3}]
[null,"Almacén",null,6,6,3,15]
[null,"Mecanizado",null,3,0,0,3]
[null,"Administración",null,0,3,0,3]
[null,null,null,null,null,null,0]
[null,null,null,null,null,null,0]
[null,null,null,null,null,null,0]
[null,null,null,null,null,null,0]
[]
["CONCLUSIONES"]

{"sheet":"ANÁLISIS POR PROCESO","index":3,"n_rows":30,"n_cols":64,"rows_kept":30,"cut":false,"hidden":false,"merged":[[5,61,6,61],[5,63,6,63],[0,0,0,14],[5,5,6,5],[5,0,6,0],[5,2,6,2],[5,10,5,12],[5,13,6,13],[5,14,6,14],[1,0,1,13],[2,0,2,13],[5,59,6,59],[5,55,6,55],[5,56,6,56],[4,29,4,51],[5,20,6,20],[5,9,6,9],[5,26,5,27],[5,1,6,1],[5,16,6,16],[5,17,6,17],[5,21,6,21],[5,24,5,25],[5,22,6,22],[5,23,6,23],[5,3,6,3],[5,4,6,4],[5,7,6,7],[5,6,6,6],[4,16,4,27],[4,53,4,56],[5,58,6,58],[5,53,6,53],[5,54,6,54],[5,49,6,49],[5,51,6,51],[5,50,6,50],[5,39,5,48],[5,29,5,38],[5,18,6,18],[5,19,6,19]]}
[]
["Herramienta de Diagnóstico Rápido Inicial\nAnálisis de información por proceso y actividad crítica"]
[{"$f":"'INFORMACION ATEL'!D6","v":"Nombre empresa"}]
[]
[null,null,null,null,null,null,null,null,null,null,null,null,null,null,null,null,"DETERMINANTE ORGANIZACIONAL",null,null,null,null,null,null,null,null,null,null,null,null,"DETERMINANTE TECNOLÓGICA",null,null,null,null,null,null,null,null,null,null,null,null,null,null,null,null,null,null,null,null,null,null,null,"DETERMINANTE AMBIENTAL"]
["No.",{"$f":"D6","v":"TAREA CRÍTICA DE MANIPULACIÓN MANUAL DE CARGAS"},"PROCESO CRÍTICO","TAREA CRÍTICA DE MANIPULACIÓN MANUAL DE CARGAS","OBSERVACIONES DE LA TAREA","No. DE EXPUESTOS","PORCENTAJE CON RELACIÓN AL TOTAL DE EXPUESTOS A MMC","CALIFICACIÓN\n(máximo valor 3)",null,"CALIFICACIÓN DE LA CALIDAD DE LA INFORMACIÓN DE LOS REGISTROS\n(máximo valor 3)","IDENTIFICACIÓN DE PELIGROS Y EVALUACIÓN DE RIESGOS",null,null,"¿SE HAN DESARROLLADO CONTROLES PARA LA PREVENCION DE ACCIDENTES POR SOBRESFUERZOS Y APARICIÓN DE DME RELACIONADOS CON LA TAREA?","CALIFICACIÓN\nPARCIAL\n(máximo valor 2)",null,"¿SE TIENE ESTIPULADO EL PERFIL OCUPACIONAL PARA LA POBLACIÓN QUE SE EXPONE A MMC?","CALIFICACIÓN\n(máximo valor 5)","¿EXISTE UN PROGRAMA DE  ENTRENAMIENTO EN  MMC PARA EL PERSONAL EXPUESTO?","CALIFICACIÓN\n(máximo valor 5)","¿EL CONTENIDO DEL TRABAJO VARÍA DE MANERA QUE FLUCTUA LA EXPOSICIÓN A MMC?","CALIFICACIÓN\n(máximo valor 5)","¿EL CONTENIDO DE LA TAREA DETERMINA UNA ACUMULACIÓN DE LA EXPOSICIÓN A MMC EN LA JORNADA?","CALIFICACIÓN\n(máximo valor 5)","LEVANTAR Y TRANSPORTAR",null,"EMPUJAR Y HALAR",null,null,"LEVANTAR Y TRANSPORTAR",null,null,null,null,null,null,null,null,null,"EMPUJAR Y HALAR",null,null,null,null,null,null,null,null,null,"¿EXISTENCIA DE AYUDAS MECÁNICAS?","¿AYUDAS MECÁNICAS EXISTENTES?","CALIFICACIÓN\n(máximo valor 5)",null,"¿CONDICIONES DE ESPACIO, ORDEN Y LIMPIEZA FAVORABLES PARA MMC?","CALIFICACIÓN\n(máximo valor 3)","¿CONFORT ASOCIADO A FAVORABLES CONDICIONES AMBIENTALES DURANTE LA MMC?","CALIFICACIÓN\n(máximo valor 3)",null,"CALIFICACIÓN TOTAL","CLASIFICACIÓN",null,"OBSERVACIONES SOBRE LA PROBLEMÁTICA DE EXPOSICIÓN A RIESGO POR MANIPULACIÓN MANUAL DE CARGAS",null,"ESTRATEGIAS GENERALES DE INTERVENCIÓN"]
[null,null,null,null,null,null,null,null,null,null,"NIVEL DE RIESGO (NR)","ACEPTABILIDAD DEL RIESGO","CALIFICACIÓN\nPARCIAL \n(máximo valor 2)",null,null,null,null,null,null,null,null,null,null,null,"FRECUENCIA","CALIFICACIÓN\n(máximo valor 5)","FRECUENCIA","CALIFICACIÓN\n(máximo valor 5)",null,"¿PESO DE LA CARGA?","CALIFICACIÓN\n(máximo valor 5)","¿ACCESIBILIDAD VERTICAL Y HORIZONTAL A LA CARGA?","CALIFICACIÓN\n(máximo valor 5)","¿DISTANCIA DE DESPLAZAMIENTO DE LA CARGA?","CALIFICACIÓN\n(máximo valor 5)","¿REQUERIMIENTOS DE GIRO MENORES A 45° EN LA MMC?","CALIFICACIÓN\n(máximo valor 5)","¿DISEÑO DE AGARRES DE LAS CARGAS A MANIPULAR MANUALMENTE?","CALIFICACIÓN\n(máximo valor 5)","¿FUERZA INICIAL?","CALIFICACIÓN\n(máximo valor 5)","¿FUERZA SOSTENIDA?","CALIFICACIÓN\n(máximo valor 5)","¿ACCESIBILIDAD VERTICAL Y HORIZONTAL AL PUNTO DE AGARRE?","CALIFICACIÓN\n(máximo valor 5)","¿DISTANCIA?","CALIFICACIÓN\n(máximo valor 5)","¿CARACTERÍSTICAS DEL OBJETO? \n(REFIERE AL DISPOSITIVO PARA TRANSPORTAR LA CARGA)","CALIFICACIÓN\n(máximo valor 5)"]
[1,{"$f":"D8","v":0},null,null,null,5,{"$f":"F8*100%/'INFORMACION ATEL'!B21","v":0.25},{"$f":"IF(G8=0%,\"0\",IF(G8<=10%,\"0,5\",IF(G8<=25%,\"1\",IF(G8<=50%,\"1,5\",IF(G8<=75%,\"2\",IF(G8>=76%,\"3\",))))))","v":"1"},null,{"$f":"'INFORMACION ATEL'!P54","v":0},null,null,null,null,null,null,null,null,null,null,null,null,null,null,null,null,null,null,null,null,null,null,null,null,null,null,null,null,null,null,null,null,null,null,null,null,null,null,null,null,null,null,null,null,null,null,{"$f":"IF(BD8=\"SI\",\"1\",IF(BD8=\"NO\",\"3\",IF(BD8=\"NA\",\"1\",IF(BD8=\"\",\"\"))))","v":""},null,{"$f":"H8+J8+M8+O8+R8+T8+V8+X8+Z8+AB8+AE8+AG8+AI8+AK8+AM8+AO8+AQ8+AS8+AU8+AW8+AZ8+BC8+BE8","v":{"$error":"#VALUE!"}},{"$f":"IF(BG8<=25,\"EVALUACIÓN PERIÓDICA\",IF(BG8<=50,\"INTERVENCIÓN A MEDIANO PLAZO\",IF(BG8<=70,\"INTERVENCIÓN A CORTO PLAZO\",IF(BG8>70,\"INTERVENCIÓN INMEDIATA\",IF(BG8=\"\",\"\")))))","v":{"$error":"#VALUE!"}}]
[null,{"$f":"D9","v":0},null,null,null,null,{"$f":"F9*100%/'INFORMACION ATEL'!B21","v":0},{"$f":"IF(G9=0%,\"0\",IF(G9<=10%,\"0,5\",IF(G9<=25%,\"1\",IF(G9<=50%,\"1,5\",IF(G9<=75%,\"2\",IF(G9>=76%,\"3\",))))))","v":"0"},null,{"$f":"'INFORMACION ATEL'!P54","v":0},null,{"$f":"IF(K9=\"IV\",\"ACEPTABLE\",IF(K9=\"III\",\"MEJORABLE\",IF(K9=\"II\",\"NO ACEPTABLE, O ACEPTABLE CON CONTROL\",IF(K9=\"I\",\"NO ACEPTABLE\",IF(K9=\"\",\"\",)))))","v":""},{"$f":"IF(K9=\"\",\"\",IF(K9=\"IV\",\"0,2\",IF(K9=\"III\",\"0,5\",IF(K9=\"II\",\"0,7\",IF(K9=\"I\",\"1\",)))))","v":""},null,{"$f":"IF(N9=\"SI\",\"1\",IF(N9=\"NO\",\"2\",IF(N9=\"\",\"\")))","v":""},null,null,{"$f":"IF(Q9=\"Completo\",\"1\",IF(Q9=\"Parcial\",\"2\",IF(Q9=\"Insuficiente\",\"4\",IF(Q9=\"No existe\",\"5\",IF(Q9=\"\",\"\")))))","v":""},null,{"$f":"IF(S9=\"SI\",\"1\",IF(S9=\"NO\",\"5\",IF(S9=\"\",\"\")))","v":""},null,{"$f":"IF(U9=\"SI\",\"1\",IF(U9=\"NO\",\"5\",IF(U9=\"\",\"\")))","v":""},null,{"$f":"IF(W9=\"de 0 a 5% intermitente\",\"1\",IF(W9=\"de 0 a 5% repetidamente\",\"1,5\",IF(W9=\"de 6% a 25% intermitente\",\"2\",IF(W9=\"de 6% a 25% repetidamente\",\"2,5\",IF(W9=\"de 26% a 50% intermitente\",\"3\",IF(W9=\"de 26% a 50% repetidamente\",\"4\",IF(W9=\"más del 51% intermitente\",\"5\",IF(W9=\"\",\"\",IF(W9=\"más del 51% repetidamente\",\"5\",IF(W9=\"\",\"\",))))))))))","v":""},null,{"$f":"IF(Y9=\"menos de 1 vez/min\",\"1\",IF(Y9=\"1 vez/min\",\"2\",IF(Y9=\"2 a 3 veces/min\",\"4\",IF(Y9=\"igual o mas de 4 veces/min\",\"5\",IF(Y9=\"No aplica\",\"1\",IF(Y9=\"\",\"\"))))))","v":""},null,{"$f":"IF(AA9=\"menos de 1 vez/min\",\"1\",IF(AA9=\"1 vez/min\",\"2\",IF(AA9=\"2 a 3 veces/min\",\"4\",IF(AA9=\"igual o mas de 4 veces/min\",\"5\",IF(AA9=\"No aplica\",\"1\",IF(AA9=\"\",\"\",))))))","v":""},null,null,{"$f":"IF(AD9=\"menor o igual a 12,5 Kg. existiendo solo mujeres\",\"1\",IF(AD9=\"mayor a 12,5 Kg. existiendo solo mujeres\",\"5\",IF(AD9=\"menor o igual a 25 Kg. existiendo solo hombres\",\"1\",IF(AD9=\"mayor a 25 Kg. existiendo solo hombres\",\"5\",IF(AD9=\"menor o igual a 25 Kg. existiendo hombres y mujeres\",\"5\",IF(AD9=\"mayor a 25 Kg. existiendo hombres y mujeres\",\"5\",IF(AD9=\"No aplica\",\"1\",IF(AD9=\"\",\"\",))))))))","v":""},null,{"$f":"IF(AF9=\"Agarres por fuera de los 70 y 130 cm. de altura y, 45 cm. de alcance\",\"5\",IF(AF9=\"Alcances dentro de los 70 y 130 cm. de altura y, 45 cm. de alcance\",\"1\",IF(AF9=\"No aplica\",\"1\",IF(AF9=\"\",\"\",))))","v":""},null,{"$f":"IF(AH9=\"menores o iguales a 1m.\",\"1\",IF(AH9=\"mayores a 1m. y menores o iguales a 2m.\",\"2\",IF(AH9=\"mayores a 2m. y menores o iguales a 4m.\",\"3\",IF(AH9=\"mayores a 4m. y menores o iguales a 10m.\",\"4\",IF(AH9=\"mayores a 10m.\",\"5\",IF(AH9=\"No aplica\",\"1\",IF(AH9=\"\",\"\",)))))))","v":""},null,{"$f":"IF(AJ9=\"SI\",\"1\",IF(AJ9=\"NO\",\"5\",IF(AJ9=\"No aplica\",\"1\",IF(AJ9=\"\",\"\"))))","v":""},null,{"$f":"IF(AL9=\"BUENO\",\"1\",IF(AL9=\"REGULAR\",\"3\",IF(AL9=\"MALO\",\"5\",IF(AL9=\"No aplica\",\"1\",IF(AL9=\"\",\"\")))))","v":""},null,{"$f":"IF(AN9=\"Requerimiento de empujar la mayoría del tiempo, sin aplicar enviones de fuerza, dejando espacio < 1m. entre la carga y los pies, para iniciar el movimiento del objeto\",\"1\",IF(AN9=\"Requerimiento de empujar y/o halar, aplicando enviones de fuerza y/o dejando amplio espacio entre la carga y los pies (>1m.) para iniciar el movimiento del objeto\",\"5\",IF(AN9=\"No aplica\",\"1\",IF(AN9=\"\",\"\"))))","v":""},null,{"$f":"IF(AP9=\"Requerimiento de empujar la mayoría del tiempo, sin aplicar enviones de fuerza, dejando espacio < 1m. entre la carga y los pies, para sostener el movimiento del objeto\",\"1\",IF(AP9=\"Requerimiento de empujar y/o halar, aplicando enviones de fuerza y/o dejando amplio espacio entre la carga y los pies (>1m.) para sostener el movimiento del objeto\",\"5\",IF(AP9=\"No aplica\",\"1\",IF(AP9=\"\",\"\"))))","v":""},null,{"$f":"IF(AR9=\"Alcances dentro de los 90 y 110 cm. de altura y, 45 cm. de alcance\",\"1\",IF(AR9=\"Agarres por fuera de los 90 y 110 cm. de altura y, 45 cm. de alcance\",\"5\",IF(AR9=\"No aplica\",\"1\",IF(AR9=\"\",\"\"))))","v":""},null,{"$f":"IF(AT9=\"menor o igual a 2m.\",\"1\",IF(AT9=\"mayor a 2m. y menor o igual a 8m.\",\"2\",IF(AT9=\"mayor a 8m. y menor o igual a 15m.\",\"3\",IF(AT9=\"mayor a 15m. y menor o igual a 30m.\",\"4\",IF(AT9=\"mayor a 31m. y menor o igual a 45m.\",\"4,5\",IF(AT9=\"mayor a 45m.\",\"5\",IF(AT9=\"No aplica\",\"1\",IF(AT9=\"\",\"\",))))))))","v":""},null,{"$f":"IF(AV9=\"Estado funcional de rodamientos, mecanismos y compartimentos\",\"1\",IF(AV9=\"Estado disfuncional de rodamientos, mecanismos y compartimentos\",\"5\",IF(AV9=\"No existe\",\"5\",IF(AV9=\"No aplica\",\"1\",IF(AV9=\"\",\"\")))))","v":""},null,null,{"$f":"IF(AX9=\"SI\",\"1\",IF(AX9=\"NO\",\"5\",IF(AX9=\"No aplica\",\"1\",IF(AX9=\"\",\"\"))))","v":""},null,null,{"$f":"IF(BB9=\"SI\",\"1\",IF(BB9=\"NO\",\"3\",IF(BB9=\"NA\",\"1\",IF(BB9=\"\",\"\"))))","v":""},null,{"$f":"IF(BD9=\"SI\",\"1\",IF(BD9=\"NO\",\"3\",IF(BD9=\"NA\",\"1\",IF(BD9=\"\",\"\"))))","v":""},null,{"$f":"H9+J9+M9+O9+R9+T9+V9+X9+Z9+AB9+AE9+AG9+AI9+AK9+AM9+AO9+AQ9+AS9+AU9+AW9+AZ9+BC9+BE9","v":{"$error":"#VALUE!"}},{"$f":"IF(BG9<=25,\"EVALUACIÓN PERIÓDICA\",IF(BG9<=50,\"INTERVENCIÓN A MEDIANO PLAZO\",IF(BG9<=70,\"INTERVENCIÓN A CORTO PLAZO\",IF(BG9>70,\"INTERVENCIÓN INMEDIATA\",IF(BG9=\"\",\"\")))))","v":{"$error":"#VALUE!"}}]
[null,0,null,null,null,null,{"$f":"F10*100%/'INFORMACION ATEL'!B21","v":0},"0",null,{"$f":"'INFORMACION ATEL'!P54","v":0},null,"","",null,"",null,null,"",null,"",null,"",null,"",null,"",null,"",null,null,"",null,"",null,"",null,"",null,"",null,"",null,"",null,"",null,"",null,"",null,null,"",null,null,"",null,"",null,{"$error":"#VALUE!"},{"$error":"#VALUE!"}]
[null,0,null,null,null,null,{"$f":"F11*100%/'INFORMACION ATEL'!B21","v":0},"0",null,{"$f":"'INFORMACION ATEL'!P54","v":0},null,"","",null,"",null,null,"",null,"",null,"",null,"",null,"",null,"",null,null,"",null,"",null,"",null,"",null,"",null,"",null,"",null,"",null,"",null,"",null,null,"",null,null,"",null,"",null,{"$error":"#VALUE!"},{"$error":"#VALUE!"}]
[null,0,null,null,null,null,{"$f":"F12*100%/'INFORMACION ATEL'!B21","v":0},"0",null,{"$f":"'INFORMACION ATEL'!P54","v":0},null,"","",null,"",null,null,"",null,"",null,"",null,"",null,"",null,"",null,null,"",null,"",null,"",null,"",null,"",null,"",null,"",null,"",null,"",null,"",null,null,"",null,null,"",null,"",null,{"$error":"#VALUE!"},{"$error":"#VALUE!"}]
[null,0,null,null,null,null,{"$f":"F13*100%/'INFORMACION ATEL'!B21","v":0},"0",null,{"$f":"'INFORMACION ATEL'!P54","v":0},null,"","",null,"",null,null,"",null,"",null,"",null,"",null,"",null,"",null,null,"",null,"",null,"",null,"",null,"",null,"",null,"",null,"",null,"",null,"",null,null,"",null,null,"",null,"",null,{"$error":"#VALUE!"},{"$error":"#VALUE!"}]
[null,0,null,null,null,null,{"$f":"F14*100%/'INFORMACION ATEL'!B21","v":0},"0",null,{"$f":"'INFORMACION ATEL'!P54","v":0},null,"","",null,"",null,null,"",null,"",null,"",null,"",null,"",null,"",null,null,"",null,"",null,"",null,"",null,"",null,"",null,"",null,"",null,"",null,"",null,null,"",null,null,"",null,"",null,{"$error":"#VALUE!"},{"$error":"#VALUE!"}]
[null,0,null,null,null,null,{"$f":"F15*100%/'INFORMACION ATEL'!B21","v":0},"0",null,{"$f":"'INFORMACION ATEL'!P54","v":0},null,"","",null,"",null,null,"",null,"",null,"",null,"",null,"",null,"",null,null,"",null,"",null,"",null,"",null,"",null,"",null,"",null,"",null,"",null,"",null,null,"",null,null,"",null,"",null,{"$error":"#VALUE!"},{"$error":"#VALUE!"}]
[null,0,null,null,null,null,{"$f":"F16*100%/'INFORMACION ATEL'!B21","v":0},"0",null,{"$f":"'INFORMACION ATEL'!P54","v":0},null,"","",null,"",null,null,"",null,"",null,"",null,"",null,"",null,"",null,null,"",null,"",null,"",null,"",null,"",null,"",null,"",null,"",null,"",null,"",null,null,"",null,null,"",null,"",null,{"$error":"#VALUE!"},{"$error":"#VALUE!"}]
[null,0,null,null,null,null,{"$f":"F17*100%/'INFORMACION ATEL'!B21","v":0},"0",null,{"$f":"'INFORMACION ATEL'!P54","v":0},null,"","",null,"",null,null,"",null,"",null,"",null,"",null,"",null,"",null,null,"",null,"",null,"",null,"",null,"",null,"",null,"",null,"",null,"",null,"",null,null,"",null,null,"",null,"",null,{"$error":"#VALUE!"},{"$error":"#VALUE!"}]
[null,0,null,null,null,null,{"$f":"F18*100%/'INFORMACION ATEL'!B21","v":0},"0",null,{"$f":"'INFORMACION ATEL'!P54","v":0},null,"","",null,"",null,null,"",null,"",null,"",null,"",null,"",null,"",null,null,"",null,"",null,"",null,"",null,"",null,"",null,"",null,"",null,"",null,"",null,null,"",null,null,"",null,"",null,{"$error":"#VALUE!"},{"$error":"#VALUE!"}]
[null,0,null,null,null,null,{"$f":"F19*100%/'INFORMACION ATEL'!B21","v":0},"0",null,{"$f":"'INFORMACION ATEL'!P54","v":0},null,"","",null,"",null,null,"",null,"",null,"",null,"",null,"",null,"",null,null,"",null,"",null,"",null,"",null,"",null,"",null,"",null,"",null,"",null,"",null,null,"",null,null,"",null,"",null,{"$error":"#VALUE!"},{"$error":"#VALUE!"}]
[null,0,null,null,null,null,{"$f":"F20*100%/'INFORMACION ATEL'!B21","v":0},"0",null,{"$f":"'INFORMACION ATEL'!P54","v":0},null,"","",null,"",null,null,"",null,"",null,"",null,"",null,"",null,"",null,null,"",null,"",null,"",null,"",null,"",null,"",null,"",null,"",null,"",null,"",null,null,"",null,null,"",null,"",null,{"$error":"#VALUE!"},{"$error":"#VALUE!"}]
[null,0,null,null,null,null,{"$f":"F21*100%/'INFORMACION ATEL'!B21","v":0},"0",null,{"$f":"'INFORMACION ATEL'!P54","v":0},null,"","",null,"",null,null,"",null,"",null,"",null,"",null,"",null,"",null,null,"",null,"",null,"",null,"",null,"",null,"",null,"",null,"",null,"",null,"",null,null,"",null,null,"",null,"",null,{"$error":"#VALUE!"},{"$error":"#VALUE!"}]
[null,0,null,null,null,null,{"$f":"F22*100%/'INFORMACION ATEL'!B21","v":0},"0",null,{"$f":"'INFORMACION ATEL'!P54","v":0},null,"","",null,"",null,null,"",null,"",null,"",null,"",null,"",null,"",null,null,"",null,"",null,"",null,"",null,"",null,"",null,"",null,"",null,"",null,"",null,null,"",null,null,"",null,"",null,{"$error":"#VALUE!"},{"$error":"#VALUE!"}]
[null,0,null,null,null,null,{"$f":"F23*100%/'INFORMACION ATEL'!B21","v":0},"0",null,{"$f":"'INFORMACION ATEL'!P54","v":0},null,"","",null,"",null,null,"",null,"",null,"",null,"",null,"",null,"",null,null,"",null,"",null,"",null,"",null,"",null,"",null,"",null,"",null,"",null,"",null,null,"",null,null,"",null,"",null,{"$error":"#VALUE!"},{"$error":"#VALUE!"}]
[null,0,null,null,null,null,{"$f":"F24*100%/'INFORMACION ATEL'!B21","v":0},"0",null,{"$f":"'INFORMACION ATEL'!P54","v":0},null,"","",null,"",null,null,"",null,"",null,"",null,"",null,"",null,"",null,null,"",null,"",null,"",null,"",null,"",null,"",null,"",null,"",null,"",null,"",null,null,"",null,null,"",null,"",null,{"$error":"#VALUE!"},{"$error":"#VALUE!"}]
[null,0,null,null,null,null,{"$f":"F25*100%/'INFORMACION ATEL'!B21","v":0},"0",null,{"$f":"'INFORMACION ATEL'!P54","v":0},null,"","",null,"",null,null,"",null,"",null,"",null,"",null,"",null,"",null,null,"",null,"",null,"",null,"",null,"",null,"",null,"",null,"",null,"",null,"",null,null,"",null,null,"",null,"",null,{"$error":"#VALUE!"},{"$error":"#VALUE!"}]
[null,0,null,null,null,34,{"$f":"F26*100%/'INFORMACION ATEL'!B21","v":1.7},"3",null,{"$f":"'INFORMACION ATEL'!P54","v":0},null,"","",null,"",null,null,"",null,"",null,"",null,"",null,"",null,"",null,null,"",null,"",null,"",null,"",null,"",null,"",null,"",null,"",null,"",null,"",null,null,"",null,null,"",null,"",null,{"$error":"#VALUE!"},{"$error":"#VALUE!"}]
[null,0,null,null,null,null,{"$f":"F27*100%/'INFORMACION ATEL'!B21","v":0},"0",null,{"$f":"'INFORMACION ATEL'!P54","v":0},null,"","",null,"",null,null,"",null,"",null,"",null,"",null,"",null,"",null,null,"",null,"",null,"",null,"",null,"",null,"",null,"",null,"",null,"",null,"",null,null,"",null,null,"",null,"",null,{"$error":"#VALUE!"},{"$error":"#VALUE!"}]
[null,0,null,null,null,null,{"$f":"F28*100%/'INFORMACION ATEL'!B21","v":0},"0",null,{"$f":"'INFORMACION ATEL'!P54","v":0},null,"","",null,"",null,null,"",null,"",null,"",null,"",null,"",null,"",null,null,"",null,"",null,"",null,"",null,"",null,"",null,"",null,"",null,"",null,"",null,null,"",null,null,"",null,"",null,{"$error":"#VALUE!"},{"$error":"#VALUE!"}]
[null,0,null,null,null,null,{"$f":"F29*100%/'INFORMACION ATEL'!B21","v":0},"0",null,{"$f":"'INFORMACION ATEL'!P54","v":0},null,"","",null,"",null,null,"",null,"",null,"",null,"",null,"",null,"",null,null,"",null,"",null,"",null,"",null,"",null,"",null,"",null,"",null,"",null,"",null,null,"",null,null,"",null,"",null,{"$error":"#VALUE!"},{"$error":"#VALUE!"}]
[null,0,null,null,null,null,{"$f":"F30*100%/'INFORMACION ATEL'!B21","v":0},"0",null,{"$f":"'INFORMACION ATEL'!P54","v":0},null,"","",null,"",null,null,"",null,"",null,"",null,"",null,"",null,"",null,null,"",null,"",null,"",null,"",null,"",null,"",null,"",null,"",null,"",null,"",null,null,"",null,null,"",null,"",null,{"$error":"#VALUE!"},{"$error":"#VALUE!"}]

{"sheet":"FORMATO DE CAMPO","index":4,"n_rows":57,"n_cols":22,"rows_kept":57,"cut":false,"hidden":false,"merged":[[57,0,78,22],[29,12,29,15],[30,12,30,15],[31,12,31,15],[32,12,32,15],[33,12,33,15],[37,0,37,22],[49,3,49,7],[48,0,48,7],[30,0,30,3],[31,0,31,3],[32,0,32,3],[33,0,33,3],[34,0,34,3],[40,0,40,3],[41,0,41,3],[27,21,27,22],[25,0,25,22],[26,0,26,22],[27,12,27,16],[56,0,56,22],[30,6,30,9],[27,0,27,4],[28,0,28,3],[29,0,29,3],[50,3,52,7],[48,9,48,13],[49,9,49,10],[49,12,49,13],[48,15,49,22],[50,15,54,22],[49,0,49,1],[27,18,27,19],[27,6,27,10],[28,6,28,9],[29,6,29,9],[15,18,15,19],[43,18,43,21],[39,12,39,13],[39,0,39,4],[38,0,38,22],[28,12,28,15],[39,15,39,16],[39,18,39,22],[40,18,40,21],[41,18,41,21],[42,18,42,21],[42,0,42,3],[39,6,39,10],[40,6,40,9],[41,6,41,9],[42,6,42,9],[7,0,7,2],[7,3,7,22],[9,0,9,2],[9,3,9,10],[0,0,0,22],[1,0,1,22],[3,0,3,22],[5,0,5,2],[5,3,5,10],[5,12,5,14],[5,18,5,20],[5,21,5,22],[5,15,5,16],[9,12,9,14],[9,15,9,16],[9,18,9,20],[15,0,15,1],[14,3,15,4],[14,0,14,1],[11,0,11,2],[11,3,11,7],[9,21,9,22],[11,15,11,22],[15,21,15,22],[13,6,13,22],[14,18,14,19],[14,21,14,22],[14,6,15,7],[14,9,15,10],[14,12,15,13],[14,15,15,16],[11,9,11,14]]}
[]
["Herramienta de Diagnóstico Rápido Inicial\nAnálisis de Información ATEL"]
[]
["INFORMACIÓN GENERAL DE LA EMPRESA"]
[]
["Razón Social",null,null,null,null,null,null,null,null,null,null,null,"NIT",null,null,null,null,null,"Fecha de diligenciamiento"]
[]
["Actividad económica"]
[]
["Dirección",null,null,null,null,null,null,null,null,null,null,null,"Teléfono",null,null,null,null,null,"Municipio"]
[]
["Proceso crítico",null,null,null,null,null,null,null,null,"Tarea crítica de manipulacipon manual de cargas"]
[]
[null,null,null,null,null,null,"DETERMINANTE ORGANIZACIONAL"]
["IDENTIFICACIÓN DE PELIGROS Y EVALUACIÓN DE RIESGOS",null,null,"¿SE HAN DESARROLLADO CONTROLES PARA LA PREVENCION DE ACCIDENTES POR SOBRESFUERZOS Y APARICIÓN DE DME RELACIONADOS CON LA TAREA?",null,null,"¿SE TIENE ESTIPULADO EL PERFIL OCUPACIONAL PARA LA POBLACIÓN QUE SE EXPONE A MMC?",null,null,"¿EXISTE UN PROGRAMA DE  ENTRENAMIENTO EN  MMC PARA EL PERSONAL EXPUESTO?",null,null,"¿EL CONTENIDO DEL TRABAJO VARÍA DE MANERA QUE FLUCTUA LA EXPOSICIÓN A MMC?",null,null,"¿EL CONTENIDO DE LA TAREA DETERMINA UNA ACUMULACIÓN DE LA EXPOSICIÓN A MMC EN LA JORNADA?",null,null,"LEVANTAR Y TRANSPORTAR",null,null,"EMPUJAR Y HALAR"]
["NIVEL DE RIESGO (NR)",null,null,null,null,null,null,null,null,null,null,null,null,null,null,null,null,null,"FRECUENCIA",null,null,"FRECUENCIA"]
["I",null,null,"SI",null,null,"Completo",null,null,"SI",null,null,"SI",null,null,"De 0 a 5% intermitente",null,null,"Menos de 1 vez/min",null,null,"Menos de 1 vez/min"]
["II",null,null,"NO",null,null,"Parcial",null,null,"NO",null,null,"NO",null,null,"De 0 a 5% repetidamente",null,null,"1 vez/min",null,null,"1 vez/min"]
["III",null,null,null,null,null,"Insuficiente",null,null,null,null,null,null,null,null,"De 6% a 25% intermitente",null,null,"2 a 3 veces/min",null,null,"2 a 3 veces/min"]
["IV",null,null,null,null,null,"No existe",null,null,null,null,null,null,null,null,"De 6% a 25% repetidamente",null,null,"Igual o mas de 4 veces/min",null,null,"Igual o mas de 4 veces/min"]
[null,null,null,null,null,null,null,null,null,null,null,null,null,null,null,"De 26% a 50% intermitente",null,null,"No aplica",null,null,"No aplica"]
[null,null,null,null,null,null,null,null,null,null,null,null,null,null,null,"De 26% a 50% repetidamente"]
[null,null,null,null,null,null,null,null,null,null,null,null,null,null,null,"Más del 51% intermitente"]
[null,null,null,null,null,null,null,null,null,null,null,null,null,null,null,"Más del 51% repetidamente"]
[]
["DETERMINANTE TECNOLÓGICA"]
["LEVANTAR Y TRANSPORTAR"]
["¿PESO DE LA CARGA?",null,null,null,null,null,"¿ACCESIBILIDAD VERTICAL Y HORIZONTAL A LA CARGA?",null,null,null,null,null,"¿DISTANCIA DE DESPLAZAMIENTO DE LA CARGA?",null,null,null,null,null,"¿REQUERIMIENTOS DE GIRO MENORES A 45° EN LA MMC?",null,null,"¿DISEÑO DE AGARRES DE LAS CARGAS A MANIPULAR MANUALMENTE?"]
["Menor o igual a 12,5 Kg. existiendo solo mujeres",null,null,null,null,null,"Alcances dentro de los 70 y 130 cm. de altura y, 45 cm. de alcance",null,null,null,null,null,"Menores o iguales a 1m.",null,null,null,null,null,"SI",null,null,"BUENO"]
["Mayor a 12,5 Kg. existiendo solo mujeres",null,null,null,null,null,"Agarres por fuera de los 70 y 130 cm. de altura y, 45 cm. de alcance",null,null,null,null,null,"Mayores a 1m. y menores o iguales a 2m.",null,null,null,null,null,"NO",null,null,"REGULAR"]
["Menor o igual a 25 Kg. existiendo solo hombres",null,null,null,null,null,"No aplica",null,null,null,null,null,"Mayores a 2m. y menores o iguales a 4m.",null,null,null,null,null,null,null,null,"MALO"]
["Mayor a 25 Kg. existiendo solo hombres",null,null,null,null,null,null,null,null,null,null,null,"Mayores a 4m. y menores o iguales a 10m.",null,null,null,null,null,null,null,null,"No aplica"]
["Menor o igual a 25 Kg. existiendo hombres y mujeres",null,null,null,null,null,null,null,null,null,null,null,"Mayores a 10m."]
["Mayor a 25 Kg. existiendo hombres y mujeres",null,null,null,null,null,null,null,null,null,null,null,"No aplica"]
["No aplica"]
[]
[]
["DETERMINANTE TECNOLÓGICA"]
["EMPUJAR Y HALAR"]
["¿FUERZA INICIAL?",null,null,null,null,null,"¿FUERZA SOSTENIDA?",null,null,null,null,null,"¿ACCESIBILIDAD VERTICAL Y HORIZONTAL AL PUNTO DE AGARRE?",null,null,"¿DISTANCIA?",null,null,"¿CARACTERÍSTICAS DEL OBJETO? \n(REFIERE AL DISPOSITIVO PARA TRANSPORTAR LA CARGA)"]
["Requerimiento de empujar la mayoría del tiempo, sin aplicar enviones de fuerza, dejando espacio < 1m. entre la carga y los pies, para iniciar el movimiento del objeto",null,null,null,null,null,"Requerimiento de empujar la mayoría del tiempo, sin aplicar enviones de fuerza, dejando espacio < 1m. entre la carga y los pies, para sostener el movimiento del objeto",null,null,null,null,null,"Alcances dentro de los 90 y 110 cm. de altura y, 45 cm. de alcance",null,null,"Menor o igual a 2m.",null,null,"Estado funcional de rodamientos, mecanismos y compartimentos"]
["Requerimiento de empujar y/o halar, aplicando enviones de fuerza y/o dejando amplio espacio entre la carga y los pies (>1m.) para iniciar el movimiento del objeto",null,null,null,null,null,"Requerimiento de empujar y/o halar, aplicando enviones de fuerza y/o dejando amplio espacio entre la carga y los pies (>1m.) para sostener el movimiento del objeto",null,null,null,null,null,"Agarres por fuera de los 90 y 110 cm. de altura y, 45 cm. de alcance",null,null,"Mayor a 2m. y menor o igual a 8m.",null,null,"Estado disfuncional de rodamientos, mecanismos y compartimentos"]
["No aplica",null,null,null,null,null,"No aplica",null,null,null,null,null,"No aplica",null,null,"Mayor a 8m. y menor o igual a 15m.",null,null,"No existe"]
[null,null,null,null,null,null,null,null,null,null,null,null,null,null,null,"Mayor a 15m. y menor o igual a 30m.",null,null,"No aplica"]
[null,null,null,null,null,null,null,null,null,null,null,null,null,null,null,"Mayor a 31m. y menor o igual a 45m."]
[null,null,null,null,null,null,null,null,null,null,null,null,null,null,null,"Mayor a 45m."]
[null,null,null,null,null,null,null,null,null,null,null,null,null,null,null,"No aplica"]
[]
["DETERMINANTE TECNOLÓGICA",null,null,null,null,null,null,null,null,"DETERMINANTE AMBIENTAL",null,null,null,null,null,"OBSERVACIONES SOBRE LA PROBLEMÁTICA DE EXPOSICIÓN A RIESGO POR MANIPULACIÓN MANUAL DE CARGAS"]
["¿EXISTENCIA DE AYUDAS MECÁNICAS?",null,null,"¿AYUDAS MECÁNICAS EXISTENTES?",null,null,null,null,null,"¿CONDICIONES DE ESPACIO, ORDEN Y LIMPIEZA FAVORABLES PARA MMC?",null,null,"¿CONFORT ASOCIADO A FAVORABLES CONDICIONES AMBIENTALES DURANTE LA MMC?"]
["SI",null,null,null,null,null,null,null,null,"SI",null,null,"SI"]
["NO",null,null,null,null,null,null,null,null,"NO",null,null,"NO"]
["No aplica"]
[]
[]
[]
["ESTRATEGIAS GENERALES DE INTERVENCIÓN"]

{"sheet":"CATEGORÍAS","index":5,"n_rows":1123,"n_cols":23,"rows_kept":1123,"cut":false,"hidden":true,"merged":[]}
["Municipio",{"$f":"'INFORMACION ATEL'!H53","v":"Actualización dentro de  los últimos 12 meses"},{"$f":"'INFORMACION ATEL'!K53","v":"Calidad  de la información de los registros para el Dx. Inicial"},"GR IDENTIFICACIÓN PELIGROS Y EVAL RIESGOS",{"$f":"'ANÁLISIS POR PROCESO'!N6","v":"¿SE HAN DESARROLLADO CONTROLES PARA LA PREVENCION DE ACCIDENTES POR SOBRESFUERZOS Y APARICIÓN DE DME RELACIONADOS CON LA TAREA?"},{"$f":"'ANÁLISIS POR PROCESO'!#REF!","v":{"$error":"#REF!"}},"SEGMENTOS",null,null,{"$f":"'ANÁLISIS POR PROCESO'!W6","v":"¿EL CONTENIDO DE LA TAREA DETERMINA UNA ACUMULACIÓN DE LA EXPOSICIÓN A MMC EN LA JORNADA?"},{"$f":"'ANÁLISIS POR PROCESO'!Y7","v":"FRECUENCIA"},{"$f":"'ANÁLISIS POR PROCESO'!AA7","v":"FRECUENCIA"},{"$f":"'ANÁLISIS POR PROCESO'!AD7","v":"¿PESO DE LA CARGA?"},{"$f":"'ANÁLISIS POR PROCESO'!AF7","v":"¿ACCESIBILIDAD VERTICAL Y HORIZONTAL A LA CARGA?"},{"$f":"'ANÁLISIS POR PROCESO'!AH7","v":"¿DISTANCIA DE DESPLAZAMIENTO DE LA CARGA?"},{"$f":"'ANÁLISIS POR PROCESO'!AL7","v":"¿DISEÑO DE AGARRES DE LAS CARGAS A MANIPULAR MANUALMENTE?"},{"$f":"'ANÁLISIS POR PROCESO'!AN7","v":"¿FUERZA INICIAL?"},{"$f":"'ANÁLISIS POR PROCESO'!AP7","v":"¿FUERZA SOSTENIDA?"},{"$f":"'ANÁLISIS POR PROCESO'!AR7","v":"¿ACCESIBILIDAD VERTICAL Y HORIZONTAL AL PUNTO DE AGARRE?"},{"$f":"'ANÁLISIS POR PROCESO'!AT7","v":"¿DISTANCIA?"},{"$f":"'ANÁLISIS POR PROCESO'!AV7","v":"¿CARACTERÍSTICAS DEL OBJETO? \n(REFIERE AL DISPOSITIVO PARA TRANSPORTAR LA CARGA)"},{"$f":"'ANÁLISIS POR PROCESO'!AX6","v":"¿EXISTENCIA DE AYUDAS MECÁNICAS?"},"PERFIL OCUPACIONAL"]
["Abejorral","SI","Suficiente","I","SI","SI","Columna cervical","SI","SI","De 0 a 5% intermitente","Menos de 1 vez/min","Menos de 1 vez/min","Menor o igual a 12,5 Kg. existiendo solo mujeres","Alcances dentro de los 70 y 130 cm. de altura y, 45 cm. de alcance","Menores o iguales a 1m.","BUENO","Requerimiento de empujar la mayoría del tiempo, sin aplicar enviones de fuerza, dejando espacio < 1m. entre la carga y los pies, para iniciar el movimiento del objeto","Requerimiento de empujar la mayoría del tiempo, sin aplicar enviones de fuerza, dejando espacio < 1m. entre la carga y los pies, para sostener el movimiento del objeto","Alcances dentro de los 90 y 110 cm. de altura y, 45 cm. de alcance","Menor o igual a 2m.","Estado funcional de rodamientos, mecanismos y compartimentos","SI","Completo"]
["Abrego","NO","Regular","II","NO","NO","Columna dorsal","NO","NO","De 0 a 5% repetidamente","1 vez/min","1 vez/min","Mayor a 12,5 Kg. existiendo solo mujeres","Agarres por fuera de los 70 y 130 cm. de altura y, 45 cm. de alcance","Mayores a 1m. y menores o iguales a 2m.","REGULAR","Requerimiento de empujar y/o halar, aplicando enviones de fuerza y/o dejando amplio espacio entre la carga y los pies (>1m.) para iniciar el movimiento del objeto","Requerimiento de empujar y/o halar, aplicando enviones de fuerza y/o dejando amplio espacio entre la carga y los pies (>1m.) para sostener el movimiento del objeto","Agarres por fuera de los 90 y 110 cm. de altura y, 45 cm. de alcance","Mayor a 2m. y menor o igual a 8m.","Estado disfuncional de rodamientos, mecanismos y compartimentos","NO","Parcial"]
["Abriaquí",null,"Sin información","III",null,null,"Columna lumbar","No aplica","No aplica","De 6% a 25% intermitente","2 a 3 veces/min","2 a 3 veces/min","Menor o igual a 25 Kg. existiendo solo hombres","No aplica","Mayores a 2m. y menores o iguales a 4m.","MALO","No aplica","No aplica","No aplica","Mayor a 8m. y menor o igual a 15m.","No existe","No aplica","Insuficiente"]
["Acacías",null,null,"IV",null,null,"Hombro derecho",null,null,"De 6% a 25% repetidamente","Igual o mas de 4 veces/min","Igual o mas de 4 veces/min","Mayor a 25 Kg. existiendo solo hombres",null,"Mayores a 4m. y menores o iguales a 10m.","No aplica",null,null,null,"Mayor a 15m. y menor o igual a 30m.","No aplica",null,"No existe"]
["Acandí",null,null,null,null,null,"Hombro izquierdo",null,null,"De 26% a 50% intermitente","No aplica","No aplica","Menor o igual a 25 Kg. existiendo hombres y mujeres",null,"Mayores a 10m.",null,null,null,null,"Mayor a 31m. y menor o igual a 45m."]
["Acevedo",null,null,null,null,null,"Codo derecho",null,null,"De 26% a 50% repetidamente",null,null,"Mayor a 25 Kg. existiendo hombres y mujeres",null,"No aplica",null,null,null,null,"Mayor a 45m."]
["Achí",null,null,null,null,null,"Codo izquierdo",null,null,"Más del 51% intermitente",null,null,"No aplica",null,null,null,null,null,null,"No aplica"]
["Agrado",null,null,null,null,null,"Muñeca derecha",null,null,"Más del 51% repetidamente"]
["Agua de Dios",null,null,null,null,null,"Muñeca izquierda"]
["Aguachica",null,null,null,null,null,"Cadera derecha"]
["Aguada",null,null,null,null,null,"Cadera izquierda"]
["Aguadas",null,null,null,null,null,"Rodilla derecha"]
["Aguazul",null,null,null,null,null,"Rodilla izquierda"]
["Agustín Codazzi",null,null,null,null,null,"Tobillo derecho"]
["Aipe",null,null,null,null,null,"Tobillo izquierdo"]
["Albán",null,null,null,null,null,"No aplica"]
["Albán"]
["Albania"]
["Albania"]
["Albania"]
["Alcalá"]
["Aldana"]
["Alejandría"]
["Algarrobo"]
["Algeciras"]
["Almaguer"]
["Almeida"]
["Alpujarra"]
["Altamira"]
["Alto Baudo"]
["Altos del Rosario"]
["Alvarado"]
["Amagá"]
["Amalfi"]
["Ambalema"]
["Anapoima"]
["Ancuyá"]
["Andalucía"]
["Andes"]
["Angelópolis"]
["Angostura"]
["Anolaima"]
["Anorí"]
["Anserma"]
["Ansermanuevo"]
["Anza"]
["Anzoátegui"]
["Apartadó"]
["Apía"]
["Apulo"]
["Aquitania"]
["Aracataca"]
["Aranzazu"]
["Aratoca"]
["Arauca"]
["Arauquita"]
["Arbeláez"]
["Arboleda"]
["Arboledas"]
["Arboletes"]
["Arcabuco"]
["Arenal"]
["Argelia"]
["Argelia"]
["Argelia"]
["Ariguaní"]
["Arjona"]
["Armenia"]
["Armenia"]
["Armero"]
["Arroyohondo"]
["Astrea"]
["Ataco"]
["Atrato"]
["Ayapel"]
["Bagadó"]
["Bahía Solano"]
["Bajo Baudó"]
["Balboa"]
["Balboa"]
["Baranoa"]
["Baraya"]
["Barbacoas"]
["Barbosa"]
["Barbosa"]
["Barichara"]
["Barranca de Upía"]
["Barrancabermeja"]
["Barrancas"]
["Barranco de Loba"]
["Barranco Minas (CD)"]
["Barranquilla"]
["Becerril"]
["Belalcázar"]
["Belén"]
["Belén"]
["Belén de Los Andaquies"]
["Belén de Umbría"]
["Bello"]
["Belmira"]
["Beltrán"]
["Berbeo"]
["Betania"]
["Betéitiva"]
["Betulia"]
["Betulia"]
["Bituima"]
["Boavita"]
["Bochalema"]
["Bogotá, D.C."]
["Bojacá"]
["Bojaya"]
["Bolívar"]
["Bolívar"]
["Bolívar"]
["Bosconia"]
["Boyacá"]
["Briceño"]
["Briceño"]
["Bucaramanga"]
["Bucarasica"]
["Buenaventura"]
["Buenavista"]
["Buenavista"]
["Buenavista"]
["Buenavista"]
["Buenos Aires"]
["Buesaco"]
["Bugalagrande"]
["Buriticá"]
["Busbanzá"]
["Cabrera"]
["Cabrera"]
["Cabuyaro"]
["Cacahual (CD)"]
["Cáceres"]
["Cachipay"]
["Cachirá"]
["Cácota"]
["Caicedo"]
["Caicedonia"]
["Caimito"]
["Cajamarca"]
["Cajibío"]
["Cajicá"]
["Calamar"]
["Calamar"]
["Calarca"]
["Caldas"]
["Caldas"]
["Caldono"]
["Cali"]
["California"]
["Calima"]
["Caloto(1)(3)"]
["Campamento"]
["Campo de La Cruz"]
["Campoalegre"]
["Campohermoso"]
["Canalete"]
["Candelaria"]
["Candelaria"]
["Cantagallo"]
["Cañasgordas"]
["Caparrapí"]
["Capitanejo"]
["Caqueza"]
["Caracolí"]
["Caramanta"]
["Carcasí"]
["Carepa"]
["Carmen de Apicalá"]
["Carmen de Carupa"]
["Carmen del Darien"]
["Carolina"]
["Cartagena"]
["Cartagena del Chairá"]
["Cartago"]
["Caruru"]
["Casabianca"]
["Castilla la Nueva"]
["Caucasia"]
["Cepitá"]
["Cereté"]
["Cerinza"]
["Cerrito"]
["Cerro San Antonio"]
["Cértegui"]
["Chachagüí"]
["Chaguaní"]
["Chalán"]
["Chameza"]
["Chaparral"]
["Charalá"]
["Charta"]
["Chía"]
["Chigorodó"]
["Chima"]
["Chimá"]
["Chimichagua"]
["Chinácota"]
["Chinavita"]
["Chinchiná"]
["Chinú"]
["Chipaque"]
["Chipatá"]
["Chiquinquirá"]
["Chíquiza"]
["Chiriguaná"]
["Chiscas"]
["Chita"]
["Chitagá"]
["Chitaraque"]
["Chivatá"]
["Chivolo"]
["Chivor"]
["Choachí"]
["Chocontá"]
["Cicuco"]
["Ciénaga"]
["Ciénaga de Oro"]
["Ciénega"]
["Cimitarra"]
["Circasia"]
["Cisneros"]
["Ciudad Bolívar"]
["Clemencia"]
["Cocorná"]
["Coello"]
["Cogua"]
["Colombia"]
["Colón"]
["Colón"]
["Coloso"]
["Cómbita"]
["Concepción"]
["Concepción"]
["Concordia"]
["Concordia"]
["Condoto"]
["Confines"]
["Consaca"]
["Contadero"]
["Contratación"]
["Convención"]
["Copacabana"]
["Coper"]
["Córdoba"]
["Córdoba"]
["Córdoba"]
["Corinto"]
["Coromoro"]
["Corozal"]
["Corrales"]
["Cota"]
["Cotorra"]
["Covarachía"]
["Coveñas"]
["Coyaima"]
["Cravo Norte"]
["Cuaspud"]
["Cubará"]
["Cubarral"]
["Cucaita"]
["Cucunubá"]
["Cúcuta"]
["Cucutilla"]
["Cuítiva"]
["Cumaral"]
["Cumaribo"]
["Cumbal"]
["Cumbitara"]
["Cunday"]
["Curillo"]
["Curití"]
["Curumaní"]
["Dabeiba"]
["Dagua"]
["Dibulla"]
["Distracción"]
["Dolores"]
["Don Matías"]
["Dosquebradas"]
["Duitama"]
["Durania"]
["Ebéjico"]
["El Águila"]
["El Bagre"]
["El Banco"]
["El Cairo"]
["El Calvario"]
["El Cantón del San Pablo"]
["El Carmen"]
["El Carmen de Atrato"]
["El Carmen de Bolívar"]
["El Carmen de Chucurí"]
["El Carmen de Viboral"]
["El Castillo"]
["El Cerrito"]
["El Charco"]
["El Cocuy"]
["El Colegio"]
["El Copey"]
["El Doncello"]
["El Dorado"]
["El Dovio"]
["El Encanto (CD)"]
["El Espino"]
["El Guacamayo"]
["El Guamo"]
["El Litoral del San Juan"]
["El Molino"]
["El Paso"]
["El Paujil"]
["El Peñol"]
["El Peñón"]
["El Peñón"]
["El Peñón"]
["El Piñon"]
["El Playón"]
["El Retén"]
["El Retorno"]
["El Roble"]
["El Rosal"]
["El Rosario"]
["El Santuario"]
["El Tablón de Gómez"]
["El Tambo"]
["El Tambo"]
["El Tarra"]
["El Zulia"]
["Elías"]
["Encino"]
["Enciso"]
["Entrerrios"]
["Envigado"]
["Espinal"]
["Facatativá"]
["Falan"]
["Filadelfia"]
["Filandia"]
["Firavitoba"]
["Flandes"]
["Florencia"]
["Florencia"]
["Floresta"]
["Florián"]
["Florida"]
["Floridablanca"]
["Fomeque"]
["Fonseca"]
["Fortul"]
["Fosca"]
["Francisco Pizarro"]
["Fredonia"]
["Fresno"]
["Frontino"]
["Fuente de Oro"]
["Fundación"]
["Funes"]
["Funza"]
["Fúquene"]
["Fusagasugá"]
["Gachala"]
["Gachancipá"]
["Gachantivá"]
["Gachetá"]
["Galán"]
["Galapa"]
["Galeras"]
["Gama"]
["Gamarra"]
["Gambita"]
["Gameza"]
["Garagoa"]
["Garzón"]
["Génova"]
["Gigante"]
["Ginebra"]
["Giraldo"]
["Girardot"]
["Girardota"]
["Girón"]
["Gómez Plata"]
["González"]
["Gramalote"]
["Granada"]
["Granada"]
["Granada"]
["Guaca"]
["Guacamayas"]
["Guacarí"]
["Guachené (1) "]
["Guachetá"]
["Guachucal"]
["Guadalajara de Buga"]
["Guadalupe"]
["Guadalupe"]
["Guadalupe"]
["Guaduas"]
["Guaitarilla"]
["Gualmatán"]
["Guamal"]
["Guamal"]
["Guamo"]
["Guapi"]
["Guapotá"]
["Guaranda"]
["Guarne"]
["Guasca"]
["Guatapé"]
["Guataquí"]
["Guatavita"]
["Guateque"]
["Guática"]
["Guavatá"]
["Guayabal de Siquima"]
["Guayabetal"]
["Guayatá"]
["Güepsa"]
["Güicán"]
["Gutiérrez"]
["Hacarí"]
["Hatillo de Loba"]
["Hato"]
["Hato Corozal"]
["Hatonuevo"]
["Heliconia"]
["Herrán"]
["Herveo"]
["Hispania"]
["Hobo"]
["Honda"]
["Ibagué"]
["Icononzo"]
["Iles"]
["Imués"]
["Inírida"]
["Inzá"]
["Ipiales"]
["Iquira"]
["Isnos"]
["Istmina"]
["Itagui"]
["Ituango"]
["Iza"]
["Jambaló"]
["Jamundí"]
["Jardín"]
["Jenesano"]
["Jericó"]
["Jericó"]
["Jerusalén"]
["Jesús María"]
["Jordán"]
["Juan de Acosta"]
["Junín"]
["Juradó"]
["La Apartada"]
["La Argentina"]
["La Belleza"]
["La Calera"]
["La Capilla"]
["La Ceja"]
["La Celia"]
["La Chorrera (CD)"]
["La Cruz"]
["La Cumbre"]
["La Dorada"]
["La Esperanza"]
["La Estrella"]
["La Florida"]
["La Gloria"]
["La Guadalupe (CD)"]
["La Jagua de Ibirico"]
["La Jagua del Pilar"]
["La Llanada"]
["La Macarena"]
["La Merced"]
["La Mesa"]
["La Montañita"]
["La Palma"]
["La Paz"]
["La Paz"]
["La Pedrera (CD)"]
["La Peña"]
["La Pintada"]
["La Plata"]
["La Playa"]
["La Primavera"]
["La Salina"]
["La Sierra"]
["La Tebaida"]
["La Tola"]
["La Unión"]
["La Unión"]
["La Unión"]
["La Unión"]
["La Uvita"]
["La Vega"]
["La Vega"]
["La Victoria"]
["La Victoria"]
["La Victoria (CD)"]
["La Virginia"]
["Labateca"]
["Labranzagrande"]
["Landázuri"]
["Lebríja"]
["Leguízamo"]
["Leiva"]
["Lejanías"]
["Lenguazaque"]
["Lérida"]
["Leticia"]
["Líbano"]
["Liborina"]
["Linares"]
["Lloró"]
["López"]
["Lorica"]
["Los Andes"]
["Los Córdobas"]
["Los Palmitos"]
["Los Patios"]
["Los Santos"]
["Lourdes"]
["Luruaco"]
["Macanal"]
["Macaravita"]
["Maceo"]
["Macheta"]
["Madrid"]
["Magangué"]
["Magüi"]
["Mahates"]
["Maicao"]
["Majagual"]
["Málaga"]
["Malambo"]
["Mallama"]
["Manatí"]
["Manaure"]
["Manaure"]
["Maní"]
["Manizales"]
["Manta"]
["Manzanares"]
["Mapiripán"]
["Mapiripana (CD)"]
["Margarita"]
["María La Baja"]
["Marinilla"]
["Maripí"]
["Mariquita"]
["Marmato"]
["Marquetalia"]
["Marsella"]
["Marulanda"]
["Matanza"]
["Medellín"]
["Medina"]
["Medio Atrato"]
["Medio Baudó"]
["Medio San Juan"]
["Melgar"]
["Mercaderes"]
["Mesetas"]
["Milán"]
["Miraflores"]
["Miraflores"]
["Miranda"]
["Miriti - Paraná (CD)"]
["Mistrató"]
["Mitú"]
["Mocoa"]
["Mogotes"]
["Molagavita"]
["Momil"]
["Mompós"]
["Mongua"]
["Monguí"]
["Moniquirá"]
["Montebello"]
["Montecristo"]
["Montelíbano(1)(3)"]
["Montenegro"]
["Montería"]
["Monterrey"]
["Moñitos"]
["Morales"]
["Morales"]
["Morelia"]
["Morichal (CD)"]
["Morroa"]
["Mosquera"]
["Mosquera"]
["Motavita"]
["Murillo"]
["Murindó"]
["Mutatá"]
["Mutiscua"]
["Muzo"]
["Nariño"]
["Nariño"]
["Nariño"]
["Nátaga"]
["Natagaima"]
["Nechí"]
["Necoclí"]
["Neira"]
["Neiva"]
["Nemocón"]
["Nilo"]
["Nimaima"]
["Nobsa"]
["Nocaima"]
["Norcasia"]
["Norosí (1)"]
["Nóvita"]
["Nueva Granada"]
["Nuevo Colón"]
["Nunchía"]
["Nuquí"]
["Obando"]
["Ocamonte"]
["Ocaña"]
["Oiba"]
["Oicatá"]
["Olaya"]
["Olaya Herrera"]
["Onzaga"]
["Oporapa"]
["Orito"]
["Orocué"]
["Ortega"]
["Ospina"]
["Otanche"]
["Ovejas"]
["Pachavita"]
["Pacho"]
["Pacoa (CD)"]
["Pácora"]
["Padilla"]
["Paez"]
["Páez"]
["Paicol"]
["Pailitas"]
["Paime"]
["Paipa"]
["Pajarito"]
["Palermo"]
["Palestina"]
["Palestina"]
["Palmar"]
["Palmar de Varela"]
["Palmas del Socorro"]
["Palmira"]
["Palmito"]
["Palocabildo"]
["Pamplona"]
["Pamplonita"]
["Pana Pana (CD)"]
["Pandi"]
["Panqueba"]
["Papunaua (CD)"]
["Páramo"]
["Paratebueno"]
["Pasca"]
["Pasto"]
["Patía"]
["Pauna"]
["Paya"]
["Paz de Ariporo"]
["Paz de Río"]
["Pedraza"]
["Pelaya"]
["Pensilvania"]
["Peñol"]
["Peque"]
["Pereira"]
["Pesca"]
["Piamonte"]
["Piedecuesta"]
["Piedras"]
["Piendamó"]
["Pijao"]
["Pijiño del Carmen"]
["Pinchote"]
["Pinillos"]
["Piojó"]
["Pisba"]
["Pital"]
["Pitalito"]
["Pivijay"]
["Planadas"]
["Planeta Rica"]
["Plato"]
["Policarpa"]
["Polonuevo"]
["Ponedera"]
["Popayán"]
["Pore"]
["Potosí"]
["Pradera"]
["Prado"]
["Providencia"]
["Providencia"]
["Pueblo Bello"]
["Pueblo Nuevo"]
["Pueblo Rico"]
["Pueblorrico"]
["Puebloviejo"]
["Puente Nacional"]
["Puerres"]
["Puerto Alegría (CD)"]
["Puerto Arica (CD)"]
["Puerto Asís"]
["Puerto Berrío"]
["Puerto Boyacá"]
["Puerto Caicedo"]
["Puerto Carreño"]
["Puerto Colombia"]
["Puerto Colombia (CD)"]
["Puerto Concordia"]
["Puerto Escondido"]
["Puerto Gaitán"]
["Puerto Guzmán"]
["Puerto Libertador"]
["Puerto Lleras"]
["Puerto López"]
["Puerto Nare"]
["Puerto Nariño"]
["Puerto Parra"]
["Puerto Rico"]
["Puerto Rico"]
["Puerto Rondón"]
["Puerto Salgar"]
["Puerto Santander"]
["Puerto Santander (CD)"]
["Puerto Tejada"]
["Puerto Triunfo"]
["Puerto Wilches"]
["Pulí"]
["Pupiales"]
["Puracé"]
["Purificación"]
["Purísima"]
["Quebradanegra"]
["Quetame"]
["Quibdó"]
["Quimbaya"]
["Quinchía"]
["Quípama"]
["Quipile"]
["Ragonvalia"]
["Ramiriquí"]
["Ráquira"]
["Recetor"]
["Regidor"]
["Remedios"]
["Remolino"]
["Repelón"]
["Restrepo"]
["Restrepo"]
["Retiro"]
["Ricaurte"]
["Ricaurte"]
["Río de Oro"]
["Río Iro"]
["Río Quito"]
["Río Viejo (1)(3)"]
["Rioblanco"]
["Riofrío"]
["Riohacha"]
["Rionegro"]
["Rionegro"]
["Riosucio"]
["Riosucio(2)"]
["Risaralda"]
["Rivera"]
["Roberto Payán"]
["Roldanillo"]
["Roncesvalles"]
["Rondón"]
["Rosas"]
["Rovira"]
["Sabana de Torres"]
["Sabanagrande"]
["Sabanalarga"]
["Sabanalarga"]
["Sabanalarga"]
["Sabanas de San Angel"]
["Sabaneta"]
["Saboyá"]
["Sácama"]
["Sáchica"]
["Sahagún"]
["Saladoblanco"]
["Salamina"]
["Salamina"]
["Salazar"]
["Saldaña"]
["Salento"]
["Salgar"]
["Samacá"]
["Samaná"]
["Samaniego"]
["Sampués"]
["San Agustín"]
["San Alberto"]
["San Andrés"]
["San Andrés"]
["San Andrés de Cuerquía"]
["San Andres de Tumaco"]
["San Andrés Sotavento (1) (3)"]
["San Antero"]
["San Antonio"]
["San Antonio del Tequendama"]
["San Benito"]
["San Benito Abad"]
["San Bernardo"]
["San Bernardo"]
["San Bernardo del Viento"]
["San Calixto"]
["San Carlos"]
["San Carlos"]
["San Carlos de Guaroa"]
["San Cayetano"]
["San Cayetano"]
["San Cristóbal"]
["San Diego"]
["San Eduardo"]
["San Estanislao"]
["San Felipe (CD)"]
["San Fernando"]
["San Francisco"]
["San Francisco"]
["San Francisco"]
["San Gil"]
["San Jacinto"]
["San Jacinto del Cauca"]
["San Jerónimo"]
["San Joaquín"]
["San José"]
["San José de La Montaña"]
["San José de Miranda"]
["San José de Pare"]
["San José de Uré(1)"]
["San José del Fragua"]
["San José del Guaviare"]
["San José del Palmar"]
["San Juan de Arama"]
["San Juan de Betulia"]
["San Juan de Río Seco"]
["San Juan de Urabá"]
["San Juan del Cesar"]
["San Juan Nepomuceno"]
["San Juanito"]
["San Lorenzo"]
["San Luis"]
["San Luis"]
["San Luis de Gaceno"]
["San Luis de Palenque"]
["San Luis de Sincé"]
["San Marcos"]
["San Martín"]
["San Martín"]
["San Martín de Loba"]
["San Mateo"]
["San Miguel"]
["San Miguel"]
["San Miguel de Sema"]
["San Onofre"]
["San Pablo"]
["San Pablo"]
["San Pablo de Borbur"]
["San Pedro"]
["San Pedro"]
["San Pedro"]
["San Pedro de Cartago"]
["San Pedro de Uraba"]
["San Pelayo"]
["San Rafael"]
["San Roque"]
["San Sebastián"]
["San Sebastián de Buenavista"]
["San Vicente"]
["San Vicente de Chucurí"]
["San Vicente del Caguán"]
["San Zenón"]
["Sandoná"]
["Santa Ana"]
["Santa Bárbara"]
["Santa Bárbara"]
["Santa Bárbara"]
["Santa Bárbara de Pinto"]
["Santa Catalina"]
["Santa Helena del Opón"]
["Santa Isabel"]
["Santa Lucía"]
["Santa María"]
["Santa María"]
["Santa Marta"]
["Santa Rosa"]
["Santa Rosa"]
["Santa Rosa de Cabal"]
["Santa Rosa de Osos"]
["Santa Rosa de Viterbo"]
["Santa Rosa del Sur"]
["Santa Rosalía"]
["Santa Sofía"]
["Santacruz"]
["Santafé de Antioquia"]
["Santana"]
["Santander de Quilichao"]
["Santiago"]
["Santiago"]
["Santiago de Tolú"]
["Santo Domingo"]
["Santo Tomás"]
["Santuario"]
["Sapuyes"]
["Saravena"]
["Sardinata"]
["Sasaima"]
["Sativanorte"]
["Sativasur"]
["Segovia"]
["Sesquilé"]
["Sevilla"]
["Siachoque"]
["Sibaté"]
["Sibundoy"]
["Silos"]
["Silvania"]
["Silvia"]
["Simacota"]
["Simijaca"]
["Simití"]
["Sincelejo"]
["Sipí"]
["Sitionuevo"]
["Soacha"]
["Soatá"]
["Socha"]
["Socorro"]
["Socotá"]
["Sogamoso"]
["Solano"]
["Soledad"]
["Solita"]
["Somondoco"]
["Sonson"]
["Sopetrán"]
["Soplaviento"]
["Sopó"]
["Sora"]
["Soracá"]
["Sotaquirá"]
["Sotara"]
["Suaita"]
["Suan"]
["Suárez"]
["Suárez"]
["Suaza"]
["Subachoque"]
["Sucre"]
["Sucre"]
["Sucre"]
["Suesca"]
["Supatá"]
["Supía"]
["Suratá"]
["Susa"]
["Susacón"]
["Sutamarchán"]
["Sutatausa"]
["Sutatenza"]
["Tabio"]
["Tadó"]
["Talaigua Nuevo"]
["Tamalameque"]
["Támara"]
["Tame"]
["Támesis"]
["Taminango"]
["Tangua"]
["Taraira"]
["Tarapacá (CD)"]
["Tarazá"]
["Tarqui"]
["Tarso"]
["Tasco"]
["Tauramena"]
["Tausa"]
["Tello"]
["Tena"]
["Tenerife"]
["Tenjo"]
["Tenza"]
["Teorama"]
["Teruel"]
["Tesalia"]
["Tibacuy"]
["Tibaná"]
["Tibasosa"]
["Tibirita"]
["Tibú"]
["Tierralta"]
["Timaná"]
["Timbío"]
["Timbiquí"]
["Tinjacá"]
["Tipacoque"]
["Tiquisio"]
["Titiribí"]
["Toca"]
["Tocaima"]
["Tocancipá"]
["Togüí"]
["Toledo"]
["Toledo"]
["Tolú Viejo"]
["Tona"]
["Tópaga"]
["Topaipí"]
["Toribio"]
["Toro"]
["Tota"]
["Totoró"]
["Trinidad"]
["Trujillo"]
["Tubará"]
["Tuchín (1)"]
["Tuluá"]
["Tunja"]
["Tununguá"]
["Túquerres"]
["Turbaco"]
["Turbaná"]
["Turbo"]
["Turmequé"]
["Tuta"]
["Tutazá"]
["Ubalá"]
["Ubaque"]
["Ulloa"]
["Umbita"]
["Une"]
["Unguía"]
["Unión Panamericana"]
["Uramita"]
["Uribe"]
["Uribia"]
["Urrao"]
["Urumita"]
["Usiacurí"]
["Útica"]
["Valdivia"]
["Valencia"]
["Valle de San José"]
["Valle de San Juan"]
["Valle del Guamuez"]
["Valledupar"]
["Valparaíso"]
["Valparaíso"]
["Vegachí"]
["Vélez"]
["Venadillo"]
["Venecia"]
["Venecia"]
["Ventaquemada"]
["Vergara"]
["Versalles"]
["Vetas"]
["Vianí"]
["Victoria"]
["Vigía del Fuerte"]
["Vijes"]
["Villa Caro"]
["Villa de Leyva"]
["Villa de San Diego de Ubate"]
["Villa del Rosario"]
["Villa Rica"]
["Villagarzón"]
["Villagómez"]
["Villahermosa"]
["Villamaría"]
["Villanueva"]
["Villanueva"]
["Villanueva"]
["Villanueva"]
["Villapinzón"]
["Villarrica"]
["Villavicencio"]
["Villavieja"]
["Villeta"]
["Viotá"]
["Viracachá"]
["Vistahermosa"]
["Viterbo"]
["Yacopí"]
["Yacuanquer"]
["Yaguará"]
["Yalí"]
["Yarumal"]
["Yavaraté (CD)"]
["Yolombó"]
["Yondó"]
["Yopal"]
["Yotoco"]
["Yumbo"]
["Zambrano"]
["Zapatoca"]
["Zapayán"]
["Zaragoza"]
["Zarzal"]
["Zetaquira"]
["Zipacón"]
["Zipaquirá"]
["Zona Bananera"]

{"sheet":"CONSOLIDADO POR ACTIVIDAD","index":6,"n_rows":53,"n_cols":22,"rows_kept":53,"cut":false,"hidden":false,"merged":[[51,0,51,21],[52,0,52,21],[43,14,43,15],[43,16,43,18],[43,19,43,20],[45,19,45,20],[44,16,44,18],[44,19,44,20],[45,12,45,13],[44,12,44,13],[44,14,44,15],[45,14,45,15],[45,16,45,18],[48,0,48,21],[49,0,49,21],[46,14,46,15],[0,0,0,21],[1,0,1,21],[4,0,4,4],[6,0,6,4],[8,0,8,4],[6,5,6,9],[8,5,8,9],[2,0,2,21],[4,5,4,9],[46,16,46,18],[46,19,46,20],[46,12,46,13],[10,0,10,4],[10,5,10,9],[6,14,10,21],[6,11,10,13],[13,1,13,6],[13,7,13,9],[13,0,15,0],[13,16,13,20],[15,16,15,20],[25,1,25,6],[27,1,27,6],[15,1,15,6],[15,7,15,9],[21,7,21,9],[23,7,23,9],[17,16,17,20],[17,7,17,9],[21,1,21,6],[23,1,23,6],[17,0,17,6],[21,0,31,0],[29,7,29,9],[35,21,37,21],[31,7,31,9],[33,7,33,9],[35,7,35,9],[37,7,37,9],[31,16,31,20],[33,14,33,20],[35,14,37,20],[13,12,37,13],[29,16,29,20],[19,16,19,20],[21,16,21,20],[23,16,23,20],[13,14,21,15],[25,16,25,20],[27,16,27,20],[35,0,37,0],[23,14,31,15],[33,1,33,3],[33,4,33,6],[31,1,31,3],[31,4,31,6],[25,7,25,9],[27,7,27,9],[40,4,40,13],[41,4,41,13],[40,14,40,16],[41,14,41,16],[29,1,29,3],[29,4,29,6],[35,1,35,6],[37,1,37,6]]}
[]
["Herramienta de Diagnóstico Rápido Inicial\nConsolidado por proceso crítico"]
[{"$f":"'INFORMACION ATEL'!D6","v":"Nombre empresa"}]
[]
[{"$f":"'ANÁLISIS POR PROCESO'!D6","v":"TAREA CRÍTICA DE MANIPULACIÓN MANUAL DE CARGAS"}]
[]
[{"$f":"'ANÁLISIS POR PROCESO'!C6","v":"PROCESO CRÍTICO"},null,null,null,null,{"$f":"VLOOKUP(F5,TABLA,2,0)","v":0},null,null,null,null,null,{"$f":"'ANÁLISIS POR PROCESO'!E6","v":"OBSERVACIONES DE LA TAREA"},null,null,{"$f":"VLOOKUP(F5,TABLA,4,0)","v":0}]
[]
[{"$f":"'ANÁLISIS POR PROCESO'!F6","v":"No. DE EXPUESTOS"},null,null,null,null,{"$f":"VLOOKUP(F5,TABLA,5,0)","v":5}]
[]
[{"$f":"'ANÁLISIS POR PROCESO'!G6","v":"PORCENTAJE CON RELACIÓN AL TOTAL DE EXPUESTOS A MMC"},null,null,null,null,{"$f":"VLOOKUP(F5,TABLA,6,0)","v":0.25}]
[]
[]
[{"$f":"'ANÁLISIS POR PROCESO'!K6","v":"IDENTIFICACIÓN DE PELIGROS Y EVALUACIÓN DE RIESGOS"},{"$f":"'ANÁLISIS POR PROCESO'!K7","v":"NIVEL DE RIESGO (NR)"},null,null,null,null,null,{"$f":"VLOOKUP(F5,TABLA,10,0)","v":0},null,null,null,null,{"$f":"'ANÁLISIS POR PROCESO'!AD5","v":"DETERMINANTE TECNOLÓGICA"},null,{"$f":"'ANÁLISIS POR PROCESO'!AD6","v":"LEVANTAR Y TRANSPORTAR"},null,{"$f":"'ANÁLISIS POR PROCESO'!AD7","v":"¿PESO DE LA CARGA?"},null,null,null,null,{"$f":"VLOOKUP(F5,TABLA,29,0)","v":0}]
[null,null,null,null,null,null,null,null,null,null,null,null,null,null,null,null,null,null,null,null,null,{"$f":"VLOOKUP(F5,TABLA,30,0)","v":0}]
[null,{"$f":"'ANÁLISIS POR PROCESO'!L7","v":"ACEPTABILIDAD DEL RIESGO"},null,null,null,null,null,{"$f":"VLOOKUP(F5,TABLA,11,0)","v":0},null,null,null,null,null,null,null,null,{"$f":"'ANÁLISIS POR PROCESO'!AF7","v":"¿ACCESIBILIDAD VERTICAL Y HORIZONTAL A LA CARGA?"},null,null,null,null,{"$f":"VLOOKUP(F5,TABLA,31,0)","v":0}]
[null,null,null,null,null,null,null,null,null,null,null,null,null,null,null,null,null,null,null,null,null,{"$f":"VLOOKUP(F5,TABLA,32,0)","v":0}]
[{"$f":"'ANÁLISIS POR PROCESO'!N6","v":"¿SE HAN DESARROLLADO CONTROLES PARA LA PREVENCION DE ACCIDENTES POR SOBRESFUERZOS Y APARICIÓN DE DME RELACIONADOS CON LA TAREA?"},null,null,null,null,null,null,{"$f":"VLOOKUP(F5,TABLA,13,0)","v":0},null,null,null,null,null,null,null,null,{"$f":"'ANÁLISIS POR PROCESO'!AH7","v":"¿DISTANCIA DE DESPLAZAMIENTO DE LA CARGA?"},null,null,null,null,{"$f":"VLOOKUP(F5,TABLA,33,0)","v":0}]
[null,null,null,null,null,null,null,null,null,null,null,null,null,null,null,null,null,null,null,null,null,{"$f":"VLOOKUP(F5,TABLA,34,0)","v":0}]
[null,null,null,null,null,null,null,null,null,null,null,null,null,null,null,null,{"$f":"'ANÁLISIS POR PROCESO'!AJ7","v":"¿REQUERIMIENTOS DE GIRO MENORES A 45° EN LA MMC?"},null,null,null,null,{"$f":"VLOOKUP(F5,TABLA,35,0)","v":0}]
[null,null,null,null,null,null,null,null,null,null,null,null,null,null,null,null,null,null,null,null,null,{"$f":"VLOOKUP(F5,TABLA,36,0)","v":0}]
[{"$f":"'ANÁLISIS POR PROCESO'!Q5","v":"DETERMINANTE ORGANIZACIONAL"},{"$f":"'ANÁLISIS POR PROCESO'!Q6","v":"¿SE TIENE ESTIPULADO EL PERFIL OCUPACIONAL PARA LA POBLACIÓN QUE SE EXPONE A MMC?"},null,null,null,null,null,{"$f":"VLOOKUP(F5,TABLA,16,0)","v":0},null,null,null,null,null,null,null,null,{"$f":"'ANÁLISIS POR PROCESO'!AL7","v":"¿DISEÑO DE AGARRES DE LAS CARGAS A MANIPULAR MANUALMENTE?"},null,null,null,null,{"$f":"VLOOKUP(F5,TABLA,37,0)","v":0}]
[null,null,null,null,null,null,null,null,null,{"$f":"VLOOKUP(F5,TABLA,17,0)","v":0},null,null,null,null,null,null,null,null,null,null,null,{"$f":"VLOOKUP(F5,TABLA,38,0)","v":0}]
[null,{"$f":"'ANÁLISIS POR PROCESO'!S6","v":"¿EXISTE UN PROGRAMA DE  ENTRENAMIENTO EN  MMC PARA EL PERSONAL EXPUESTO?"},null,null,null,null,null,{"$f":"VLOOKUP(F5,TABLA,18,0)","v":0},null,null,null,null,null,null,{"$f":"'ANÁLISIS POR PROCESO'!AN6","v":"EMPUJAR Y HALAR"},null,{"$f":"'ANÁLISIS POR PROCESO'!AN7","v":"¿FUERZA INICIAL?"},null,null,null,null,{"$f":"VLOOKUP(F5,TABLA,39,0)","v":0}]
[null,null,null,null,null,null,null,null,null,{"$f":"VLOOKUP(F5,TABLA,19,0)","v":0},null,null,null,null,null,null,null,null,null,null,null,{"$f":"VLOOKUP(F5,TABLA,40,0)","v":0}]
[null,{"$f":"'ANÁLISIS POR PROCESO'!U6","v":"¿EL CONTENIDO DEL TRABAJO VARÍA DE MANERA QUE FLUCTUA LA EXPOSICIÓN A MMC?"},null,null,null,null,null,{"$f":"VLOOKUP(F5,TABLA,20,0)","v":0},null,null,null,null,null,null,null,null,{"$f":"'ANÁLISIS POR PROCESO'!AP7","v":"¿FUERZA SOSTENIDA?"},null,null,null,null,{"$f":"VLOOKUP(F5,TABLA,41,0)","v":0}]
[null,null,null,null,null,null,null,null,null,{"$f":"VLOOKUP(F5,TABLA,21,0)","v":0},null,null,null,null,null,null,null,null,null,null,null,{"$f":"VLOOKUP(F5,TABLA,42,0)","v":0}]
[null,{"$f":"'ANÁLISIS POR PROCESO'!W6","v":"¿EL CONTENIDO DE LA TAREA DETERMINA UNA ACUMULACIÓN DE LA EXPOSICIÓN A MMC EN LA JORNADA?"},null,null,null,null,null,{"$f":"VLOOKUP(F5,TABLA,22,0)","v":0},null,null,null,null,null,null,null,null,{"$f":"'ANÁLISIS POR PROCESO'!AR7","v":"¿ACCESIBILIDAD VERTICAL Y HORIZONTAL AL PUNTO DE AGARRE?"},null,null,null,null,{"$f":"VLOOKUP(F5,TABLA,43,0)","v":0}]
[null,null,null,null,null,null,null,null,null,{"$f":"VLOOKUP(F5,TABLA,23,0)","v":0},null,null,null,null,null,null,null,null,null,null,null,{"$f":"VLOOKUP(F5,TABLA,44,0)","v":0}]
[null,{"$f":"'ANÁLISIS POR PROCESO'!Y6","v":"LEVANTAR Y TRANSPORTAR"},null,null,{"$f":"'ANÁLISIS POR PROCESO'!Y7","v":"FRECUENCIA"},null,null,{"$f":"VLOOKUP(F5,TABLA,24,0)","v":0},null,null,null,null,null,null,null,null,{"$f":"'ANÁLISIS POR PROCESO'!AT7","v":"¿DISTANCIA?"},null,null,null,null,{"$f":"VLOOKUP(F5,TABLA,45,0)","v":0}]
[null,null,null,null,null,null,null,null,null,{"$f":"VLOOKUP(F5,TABLA,25,0)","v":0},null,null,null,null,null,null,null,null,null,null,null,{"$f":"VLOOKUP(F5,TABLA,46,0)","v":0}]
[null,{"$f":"'ANÁLISIS POR PROCESO'!AA6","v":"EMPUJAR Y HALAR"},null,null,{"$f":"'ANÁLISIS POR PROCESO'!AA7","v":"FRECUENCIA"},null,null,{"$f":"VLOOKUP(F5,TABLA,26,0)","v":0},null,null,null,null,null,null,null,null,{"$f":"'ANÁLISIS POR PROCESO'!AV7","v":"¿CARACTERÍSTICAS DEL OBJETO? \n(REFIERE AL DISPOSITIVO PARA TRANSPORTAR LA CARGA)"},null,null,null,null,{"$f":"VLOOKUP(F5,TABLA,47,0)","v":0}]
[null,null,null,null,null,null,null,null,null,{"$f":"VLOOKUP(F5,TABLA,27,0)","v":0},null,null,null,null,null,null,null,null,null,null,null,{"$f":"VLOOKUP(F5,TABLA,48,0)","v":0}]
[null,null,null,null,null,null,null,null,null,null,null,null,null,null,{"$f":"'ANÁLISIS POR PROCESO'!AX6","v":"¿EXISTENCIA DE AYUDAS MECÁNICAS?"},null,null,null,null,null,null,{"$f":"VLOOKUP(F5,TABLA,49,0)","v":0}]
[]
[{"$f":"'ANÁLISIS POR PROCESO'!BB5","v":"DETERMINANTE AMBIENTAL"},{"$f":"'ANÁLISIS POR PROCESO'!BB6","v":"¿CONDICIONES DE ESPACIO, ORDEN Y LIMPIEZA FAVORABLES PARA MMC?"},null,null,null,null,null,{"$f":"VLOOKUP(F5,TABLA,53,0)","v":0},null,null,null,null,null,null,{"$f":"'ANÁLISIS POR PROCESO'!AY6","v":"¿AYUDAS MECÁNICAS EXISTENTES?"},null,null,null,null,null,null,{"$f":"VLOOKUP(F5,TABLA,50,0)","v":0}]
[null,null,null,null,null,null,null,null,null,{"$f":"VLOOKUP(F5,TABLA,54,0)","v":0}]
[null,{"$f":"'ANÁLISIS POR PROCESO'!BD6","v":"¿CONFORT ASOCIADO A FAVORABLES CONDICIONES AMBIENTALES DURANTE LA MMC?"},null,null,null,null,null,{"$f":"VLOOKUP(F5,TABLA,55,0)","v":0}]
[null,null,null,null,null,null,null,null,null,{"$f":"VLOOKUP(F5,TABLA,56,0)","v":""},null,null,null,null,null,null,null,null,null,null,null,{"$f":"VLOOKUP(F5,TABLA,51,0)","v":0}]
[]
[null,null,null,null,{"$f":"'ANÁLISIS POR PROCESO'!BG6","v":"CALIFICACIÓN TOTAL"},null,null,null,null,null,null,null,null,null,{"$f":"VLOOKUP(F5,TABLA,58,0)","v":{"$error":"#VALUE!"}}]
[null,null,null,null,{"$f":"'ANÁLISIS POR PROCESO'!BH6","v":"CLASIFICACIÓN"},null,null,null,null,null,null,null,null,null,{"$f":"VLOOKUP(F5,TABLA,59,0)","v":{"$error":"#VALUE!"}}]
[]
[null,null,null,null,null,null,null,null,null,null,null,null,null,null,"Calificación ideal",null,"Peor calificación",null,null,"Calificación actual",null,"Porcentaje de gestión en el control del riesgo por MMC"]
[null,null,null,null,null,null,null,null,null,null,null,{"$f":"IF(T45=30,\"0\",IF(T45<=29,\"1\",))","v":"1"},{"$f":"A22","v":"DETERMINANTE ORGANIZACIONAL"},null,6,null,30,null,null,{"$f":"J23+J25+J27+J29+J31+J33","v":0},null,{"$f":"(100/T45)*100%/(100/O45)*L45","v":{"$error":"#DIV/0!"}}]
[null,null,null,null,null,null,null,null,null,null,null,{"$f":"IF(T46=55,\"0\",IF(T46<=54,\"1\",))","v":"1"},{"$f":"M14","v":"DETERMINANTE TECNOLÓGICA"},null,11,null,55,null,null,{"$f":"V15+V17+V19+V21+V23+V25+V27+V29+V31+V33+V39","v":0},null,{"$f":"(100/T46)*100%/(100/O46)*L46","v":{"$error":"#DIV/0!"}}]
[null,null,null,null,null,null,null,null,null,null,null,{"$f":"IF(T47=6,\"0\",IF(T47<=5,\"1\",))","v":{"$error":"#VALUE!"}},{"$f":"A36","v":"DETERMINANTE AMBIENTAL"},null,2,null,6,null,null,{"$f":"J37+J39","v":{"$error":"#VALUE!"}},null,{"$f":"(100/T47)*100%/(100/O47)*L47","v":{"$error":"#VALUE!"}}]
[]
[{"$f":"'ANÁLISIS POR PROCESO'!BJ6","v":"OBSERVACIONES SOBRE LA PROBLEMÁTICA DE EXPOSICIÓN A RIESGO POR MANIPULACIÓN MANUAL DE CARGAS"}]
[{"$f":"VLOOKUP(F5,TABLA,61,0)","v":0}]
[]
[{"$f":"'ANÁLISIS POR PROCESO'!BL6","v":"ESTRATEGIAS GENERALES DE INTERVENCIÓN"}]
[{"$f":"VLOOKUP(F5,TABLA,63,0)","v":0}]

{"sheet":"BIBLIOGRAFÍA","index":7,"n_rows":4,"n_cols":1,"rows_kept":4,"cut":false,"hidden":false,"merged":[[0,0,0,14],[1,0,1,14],[3,0,3,14]]}
[]
["Bibliografía"]
[]
["Ciriello, Vincent M., and Snook, Stover H., (1991), “The design of manual handling tasks:\nrevised tables of maximum acceptable weights and forces.” Ergonomics, 34(9), 1197-1213.\n\nErgoweb Inc., (1995 – 2001), “Liberty Mutual Acceptable Pushing/Pulling Force Tool,” published\nin the Ergoweb Job Evaluator Toolbox™ software system, on http://www.ergoweb.com.\n\nICONTEC, NTC 5693-1 Ergonomía. Manipulación manual parte 1: Levantar y transportar, Icontec, Colombia: 2010 \n\nICONTEC, NTC 5693-2 Ergonomía. Manipulación manual parte 2: Empujar y halar, Icontec, Colombia: 2010\n\nISO 11228-1, Ergonomics – Manual handling – Part 1: Lifting and carrying. 2003\n\nISO 11228-2, Ergonomics – Manual handling – Part 2: Pushing and pulling. 2007 \n\nErgonomic Design for People at Work: Vol. 2, de Eastman Kodak Company. Van Nostrand Reinhold, 2004\n\n"]

{"sheet":"FORMATO CAMPO","index":8,"n_rows":48,"n_cols":28,"rows_kept":48,"cut":false,"hidden":true,"merged":[[47,3,47,6],[44,3,45,7],[7,15,7,17],[44,10,47,28],[43,10,43,28],[43,0,43,7],[38,9,41,21],[44,0,45,1],[31,15,32,15],[29,16,30,16],[37,3,38,7],[39,3,39,6],[40,3,40,6],[41,3,41,6],[46,3,46,6],[28,21,28,22],[28,24,28,25],[28,27,28,28],[31,16,32,16],[29,18,30,18],[31,18,32,18],[29,19,30,19],[31,19,32,19],[37,9,37,21],[5,0,5,3],[5,4,5,13],[7,0,7,3],[7,4,7,13],[29,15,30,15],[26,0,26,28],[27,0,27,13],[28,0,28,1],[28,3,28,4],[28,6,28,7],[28,9,28,10],[28,12,28,13],[27,15,27,28],[28,15,28,16],[28,18,28,19],[12,0,12,13],[11,0,11,13],[12,15,12,28],[11,15,11,28],[0,0,0,28],[1,0,1,28],[3,0,3,28],[5,23,5,25],[5,26,5,28],[7,18,7,28],[9,0,9,3],[9,4,9,10],[9,12,9,15],[9,16,9,22],[9,24,9,26],[9,27,9,28],[15,24,16,25],[14,15,14,25],[15,12,15,13],[16,12,16,13],[15,6,16,7],[14,3,14,13],[15,3,16,4],[15,9,15,10],[15,15,16,16],[15,18,16,19],[15,21,16,22],[16,9,16,10]]}
[]
["Herramienta de Dx. Rápido Inicial\nFormato de campo"]
[]
["INFORMACIÓN GENERAL DE LA EMPRESA"]
[]
["RAZÓN SOCIAL",null,null,null,null,null,null,null,null,null,null,null,null,null,null,null,null,null,null,null,null,null,null,"FECHA"]
[]
["NOMBRE DE LA PERSONA DE LA EMPRESA QUE ACOMPAÑA LA VISITA",null,null,null,null,null,null,null,null,null,null,null,null,null,null,"CARGO"]
[]
[{"$f":"'ANÁLISIS POR PROCESO'!D6","v":"TAREA CRÍTICA DE MANIPULACIÓN MANUAL DE CARGAS"},null,null,null,null,null,null,null,null,null,null,null,{"$f":"'ANÁLISIS POR PROCESO'!C6","v":"PROCESO CRÍTICO"},null,null,null,null,null,null,null,null,null,null,null,{"$f":"'ANÁLISIS POR PROCESO'!F6","v":"No. DE EXPUESTOS"}]
[]
[{"$f":"'ANÁLISIS POR PROCESO'!E6","v":"OBSERVACIONES DE LA TAREA"},null,null,null,null,null,null,null,null,null,null,null,null,null,null,"NOTAS DE CAMPO"]
[]
[]
[null,null,null,{"$f":"'ANÁLISIS POR PROCESO'!#REF!","v":{"$error":"#REF!"}},null,null,null,null,null,null,null,null,null,null,null,{"$f":"'ANÁLISIS POR PROCESO'!#REF!","v":{"$error":"#REF!"}}]
[null,null,null,{"$f":"'ANÁLISIS POR PROCESO'!U6","v":"¿EL CONTENIDO DEL TRABAJO VARÍA DE MANERA QUE FLUCTUA LA EXPOSICIÓN A MMC?"},null,null,{"$f":"'ANÁLISIS POR PROCESO'!W6","v":"¿EL CONTENIDO DE LA TAREA DETERMINA UNA ACUMULACIÓN DE LA EXPOSICIÓN A MMC EN LA JORNADA?"},null,null,{"$f":"'ANÁLISIS POR PROCESO'!Y6","v":"LEVANTAR Y TRANSPORTAR"},null,null,{"$f":"'ANÁLISIS POR PROCESO'!AA6","v":"EMPUJAR Y HALAR"},null,null,{"$f":"'ANÁLISIS POR PROCESO'!#REF!","v":{"$error":"#REF!"}},null,null,{"$f":"'ANÁLISIS POR PROCESO'!#REF!","v":{"$error":"#REF!"}},null,null,{"$f":"'ANÁLISIS POR PROCESO'!#REF!","v":{"$error":"#REF!"}},null,null,{"$f":"'ANÁLISIS POR PROCESO'!#REF!","v":{"$error":"#REF!"}}]
[null,null,null,null,null,null,null,null,null,{"$f":"'ANÁLISIS POR PROCESO'!Y7","v":"FRECUENCIA"},null,null,{"$f":"'ANÁLISIS POR PROCESO'!AA7","v":"FRECUENCIA"}]
[null,null,null,"SI",null,null,"de 0 a 5% intermitente",null,null,"menos de 1 vez/min",null,null,"menos de 1 vez/min",null,null,"SI",null,null,"SI",null,null,"SI",null,null,"SI"]
[null,null,null,"NO",null,null,"de 0 a 5% repetidamente",null,null,"1 vez/min",null,null,"1 vez/min",null,null,"NO",null,null,"NO",null,null,"NO",null,null,"NO"]
[null,null,null,"NA",null,null,"de 6% a 25% intermitente",null,null,"2 a 3 veces/min",null,null,"2 a 3 veces/min",null,null,"NA",null,null,"NA",null,null,"NA",null,null,"NA"]
[null,null,null,null,null,null,"de 6% a 25% repetidamente",null,null,"igual o mas de 4 veces/min",null,null,"igual o mas de 4 veces/min"]
[null,null,null,null,null,null,"de 26% a 50% intermitente",null,null,"No aplica",null,null,"No aplica"]
[null,null,null,null,null,null,"de 26% a 50% repetidamente"]
[null,null,null,null,null,null,"más del 51% intermitente"]
[null,null,null,null,null,null,"más del 51% repetidamente"]
[]
[{"$f":"'ANÁLISIS POR PROCESO'!#REF!","v":{"$error":"#REF!"}}]
[{"$f":"'ANÁLISIS POR PROCESO'!AD6","v":"LEVANTAR Y TRANSPORTAR"},null,null,null,null,null,null,null,null,null,null,null,null,null,null,{"$f":"'ANÁLISIS POR PROCESO'!AN6","v":"EMPUJAR Y HALAR"}]
[{"$f":"'ANÁLISIS POR PROCESO'!AD7","v":"¿PESO DE LA CARGA?"},null,null,{"$f":"'ANÁLISIS POR PROCESO'!AF7","v":"¿ACCESIBILIDAD VERTICAL Y HORIZONTAL A LA CARGA?"},null,null,{"$f":"'ANÁLISIS POR PROCESO'!AH7","v":"¿DISTANCIA DE DESPLAZAMIENTO DE LA CARGA?"},null,null,{"$f":"'ANÁLISIS POR PROCESO'!AJ7","v":"¿REQUERIMIENTOS DE GIRO MENORES A 45° EN LA MMC?"},null,null,{"$f":"'ANÁLISIS POR PROCESO'!AL7","v":"¿DISEÑO DE AGARRES DE LAS CARGAS A MANIPULAR MANUALMENTE?"},null,null,{"$f":"'ANÁLISIS POR PROCESO'!AN7","v":"¿FUERZA INICIAL?"},null,null,{"$f":"'ANÁLISIS POR PROCESO'!AP7","v":"¿FUERZA SOSTENIDA?"},null,null,{"$f":"'ANÁLISIS POR PROCESO'!AR7","v":"¿ACCESIBILIDAD VERTICAL Y HORIZONTAL AL PUNTO DE AGARRE?"},null,null,{"$f":"'ANÁLISIS POR PROCESO'!AT7","v":"¿DISTANCIA?"},null,null,{"$f":"'ANÁLISIS POR PROCESO'!AV7","v":"¿CARACTERÍSTICAS DEL OBJETO? \n(REFIERE AL DISPOSITIVO PARA TRANSPORTAR LA CARGA)"}]
["menor o igual a 12,5Kg.",null,null,"Alcances dentro de los 70 y 130 cm. de altura y, 45 cm. de alcance",null,null,"menores o iguales a 1m.",null,null,"SI",null,null,"BUENO",null,null,"Requerimiento de empujar sin aplicar enviones de fuerza, dejando espacio < 1m. entre la carga y los pies, para iniciar el movimiento del objeto",null,null,"Requerimiento de empujar sin aplicar enviones de fuerza, dejando espacio < 1m. entre la carga y los pies, para sostener el movimiento del objeto",null,null,"Alcances dentro de los 90 y 110 cm. de altura y, 45 cm. de alcance",null,null,"menor o igual a 2m.",null,null,"Estado funcional de rodamientos, mecanismos y compartimentos"]
["menor o igual a 25Kg. existiendo hombres y mujeres",null,null,"Agarres por fuera de los 70 y 130 cm. de altura y, 45 cm. de alcance",null,null,"mayores a 1m. y menores o iguales a 2m.",null,null,"NO",null,null,"REGULAR",null,null,null,null,null,null,null,null,"Agarres por fuera de los 90 y 110 cm. de altura y, 45 cm. de alcance",null,null,"mayor a 2m. y menor o igual a 8m.",null,null,"Estado disfuncional de rodamientos, mecanismos y compartimentos"]
["menor o igual a 25Kg. existiendo solo hombres",null,null,"No aplica",null,null,"mayores a 2m. y menores o iguales a 4m.",null,null,"No aplica",null,null,"MALO",null,null,"Requerimiento de empujar y/o halar, aplicando enviones de fuerza y/o dejando amplio espacio entre la carga y los pies (>1m.) para iniciar el movimiento del objeto",null,null,"Requerimiento de empujar y/o halar, aplicando enviones de fuerza y/o dejando amplio espacio entre la carga y los pies (>1m.) para sostener el movimiento del objeto",null,null,"No aplica",null,null,"mayor a 8m. y menor o igual a 15m.",null,null,"No existe"]
[" mas de 25Kg. existiendo solo hombres",null,null,null,null,null,"mayores a 4m. y menores o iguales a 10m.",null,null,null,null,null,"No aplica",null,null,null,null,null,null,null,null,null,null,null,"mayor a 15m. y menor o igual a 30m.",null,null,"No aplica"]
["mas de 25Kg. existiendo hombres y mujeres",null,null,null,null,null,"mayores a 10m.",null,null,null,null,null,null,null,null,"No aplica",null,null,"No aplica",null,null,null,null,null,"mayor a 31m. y menor o igual a 45m."]
["No aplica",null,null,null,null,null,"No aplica",null,null,null,null,null,null,null,null,null,null,null,null,null,null,null,null,null,"mayor a 45m."]
[null,null,null,null,null,null,null,null,null,null,null,null,null,null,null,null,null,null,null,null,null,null,null,null,"No aplica"]
[]
[null,null,null,{"$f":"CATEGORÍAS!V1","v":"¿EXISTENCIA DE AYUDAS MECÁNICAS?"},null,null,null,null,null,{"$f":"'ANÁLISIS POR PROCESO'!AY6","v":"¿AYUDAS MECÁNICAS EXISTENTES?"}]
[]
[null,null,null,"SI"]
[null,null,null,"NO"]
[null,null,null,"NA"]
[]
[{"$f":"'ANÁLISIS POR PROCESO'!#REF!","v":{"$error":"#REF!"}},null,null,null,null,null,null,null,null,null,{"$f":"'ANÁLISIS POR PROCESO'!#REF!","v":{"$error":"#REF!"}}]
[{"$f":"'ANÁLISIS POR PROCESO'!BB6","v":"¿CONDICIONES DE ESPACIO, ORDEN Y LIMPIEZA FAVORABLES PARA MMC?"},null,null,{"$f":"'ANÁLISIS POR PROCESO'!BD6","v":"¿CONFORT ASOCIADO A FAVORABLES CONDICIONES AMBIENTALES DURANTE LA MMC?"}]
[]
["SI",null,null,"SI"]
["NO",null,null,"NO"]

{"sheet":"snook & ciriello resumen","index":9,"n_rows":11,"n_cols":8,"rows_kept":11,"cut":false,"hidden":true,"merged":[[0,0,0,7],[3,2,3,4],[2,1,4,1],[2,0,4,0],[2,2,2,7],[3,5,3,7]]}
["FUERZA MÁXIMA INICIAL ACEPTABLE EN VIRTUD DE DISTANCIAS Y MÁXIMAS FRECUENCIAS"]
[]
["Distancias en m.","Frecuencias patron","Newtons"]
[null,null,"Hombre",null,null,"Mujer"]
[null,null,144,95,64,135,89,57]
[2,"Hasta 10 veces/min",200,210,190,140,140,210]
[8,"Hasta 4 veces min",140,160,130,150,140,110]
[15,"2,5 veces/min",160,180,150,120,110,90]
[30,"1 vez/min",150,170,140,120,120,110]
[45,"1 vez/min",130,140,120,120,120,110]
[60,"1 vez/2 min",120,140,120,120,120,100]